Publisher Label,Publisher URI,"Supplier","Net Amount £","Organisational Unit","Merchant Category Code","Purpose","Payment Date"
"Wolverhampton City Council","http://opendatacommunities.org/id/metropolitan-district-council/wolverhampton","PO STOW HEATH 1840",16.67,"LAC Transitions Team","6011","Client Allowances","30/06/2020"
"Wolverhampton City Council","http://opendatacommunities.org/id/metropolitan-district-council/wolverhampton","ASDA GROCERIES ONLINE",1,"Upper Pendeford Farm Childrens Home","5411","Provisions (Not for resale)","30/06/2020"
"Wolverhampton City Council","http://opendatacommunities.org/id/metropolitan-district-council/wolverhampton","ASDA GROCERIES ONLINE",199.68,"Upper Pendeford Farm Childrens Home","5411","Provisions (Not for resale)","30/06/2020"
"Wolverhampton City Council","http://opendatacommunities.org/id/metropolitan-district-council/wolverhampton","GEN REGISTER OFFICE",77,"Looked After Team 2","9399","Financial Assistance In Exceptional Circ","30/06/2020"
"Wolverhampton City Council","http://opendatacommunities.org/id/metropolitan-district-council/wolverhampton","SHELL WILLENHALL R",54.62,"Patching","5541","Petrol","30/06/2020"
"Wolverhampton City Council","http://opendatacommunities.org/id/metropolitan-district-council/wolverhampton","PARCELFORCE WL",30.35,"Technical Support","4215","Computing - Purchase of Hardware","30/06/2020"
"Wolverhampton City Council","http://opendatacommunities.org/id/metropolitan-district-council/wolverhampton","123 REG LTD",15.99,"Technical Support","5968","Subscriptions","30/06/2020"
"Wolverhampton City Council","http://opendatacommunities.org/id/metropolitan-district-council/wolverhampton","AMZNMktplace",189,"Food and Health & Safety","5999","Equipment - Purchase","30/06/2020"
"Wolverhampton City Council","http://opendatacommunities.org/id/metropolitan-district-council/wolverhampton","WWW.CII.CO.UK",440,"Workforce Development","8699","Books","30/06/2020"
"Wolverhampton City Council","http://opendatacommunities.org/id/metropolitan-district-council/wolverhampton","WESTMINSTER INSIGHT",234,"Workforce Development","8299","Training Expenses","30/06/2020"
"Wolverhampton City Council","http://opendatacommunities.org/id/metropolitan-district-council/wolverhampton","WM MORRISONS STORE",49.67,"Ernest Bold Court","5411","Provisions (Not for resale)","30/06/2020"
"Wolverhampton City Council","http://opendatacommunities.org/id/metropolitan-district-council/wolverhampton","E C STRAITON RUGEL",38.77,"Northicote Farm","0742","Professional fees","30/06/2020"
"Wolverhampton City Council","http://opendatacommunities.org/id/metropolitan-district-council/wolverhampton","Amazon.co.uk 8Q7L41QU5",16.67,"Headstart - Young People Engagement","5969","Provisions (Not for resale)","30/06/2020"
"Wolverhampton City Council","http://opendatacommunities.org/id/metropolitan-district-council/wolverhampton","Amazon.co.uk WM2PY8XB5",8.33,"Headstart - Young People Engagement","5969","Provisions (Not for resale)","30/06/2020"
"Wolverhampton City Council","http://opendatacommunities.org/id/metropolitan-district-council/wolverhampton","Amazon.co.uk VL1O85J35",50,"Headstart - Young People Engagement","5969","Provisions (Not for resale)","30/06/2020"
"Wolverhampton City Council","http://opendatacommunities.org/id/metropolitan-district-council/wolverhampton","AMZNMktplace",382.5,"LAC Transitions Team","5999","Client Allowances","30/06/2020"
"Wolverhampton City Council","http://opendatacommunities.org/id/metropolitan-district-council/wolverhampton","FARMFOODS 603",35,"Bradley Resource Centre","5411","Cleaning Supplies and Materials","30/06/2020"
"Wolverhampton City Council","http://opendatacommunities.org/id/metropolitan-district-council/wolverhampton","WM MORRISONS STORE",132.46,"Bradley Resource Centre","5411","Provisions (Not for resale)","30/06/2020"
"Wolverhampton City Council","http://opendatacommunities.org/id/metropolitan-district-council/wolverhampton","2CO.COM nopCommer",201.27,"Document Centre - General","5817","Subscriptions","30/06/2020"
"Wolverhampton City Council","http://opendatacommunities.org/id/metropolitan-district-council/wolverhampton","SPORTSDIRECT.COM",20,"Looked After Team 2","5941","Direct Work With Children","30/06/2020"
"Wolverhampton City Council","http://opendatacommunities.org/id/metropolitan-district-council/wolverhampton","AMZNMktplace",89.6,"SWP - Infrastructure","5999","Equipment - Purchase","29/06/2020"
"Wolverhampton City Council","http://opendatacommunities.org/id/metropolitan-district-council/wolverhampton","MARKS&SPENCER PLC",25,"Regional Adoption Agency","5411","Provisions (Not for resale)","29/06/2020"
"Wolverhampton City Council","http://opendatacommunities.org/id/metropolitan-district-council/wolverhampton","MARKS&SPENCER PLC",25,"Regional Adoption Agency","5411","Provisions (Not for resale)","29/06/2020"
"Wolverhampton City Council","http://opendatacommunities.org/id/metropolitan-district-council/wolverhampton","SCREWFIX DIRECT",57.47,"Car Parks Operational Staff","5200","Equipment - Purchase","29/06/2020"
"Wolverhampton City Council","http://opendatacommunities.org/id/metropolitan-district-council/wolverhampton","GOOGLE  ADS5477893156",196.67,"Communications & Marketing - General","7372","R4317","29/06/2020"
"Wolverhampton City Council","http://opendatacommunities.org/id/metropolitan-district-council/wolverhampton","ASDA STORES 7134",5,"Key to Inspiration","5411","-","29/06/2020"
"Wolverhampton City Council","http://opendatacommunities.org/id/metropolitan-district-council/wolverhampton","WM MORRISONS STORE",93.81,"Bradley Resource Centre","5411","Provisions (Not for resale)","29/06/2020"
"Wolverhampton City Council","http://opendatacommunities.org/id/metropolitan-district-council/wolverhampton","SQ  PRICE CUT FOOD WV1",8.75,"Bradley Resource Centre","5399","Provisions (Not for resale)","29/06/2020"
"Wolverhampton City Council","http://opendatacommunities.org/id/metropolitan-district-council/wolverhampton","Amazon.co.uk M16KA7YD5",83.32,"Bradley Resource Centre","5969","Equipment - Purchase","29/06/2020"
"Wolverhampton City Council","http://opendatacommunities.org/id/metropolitan-district-council/wolverhampton","WWW.CORAM.ORG.UK",140.4,"Regional Adoption Agency","8398","Training Expenses","29/06/2020"
"Wolverhampton City Council","http://opendatacommunities.org/id/metropolitan-district-council/wolverhampton","WWW.VOUCHEREXPRESS.CO.",245.75,"Youth Offending Team","5947","Provisions (Not for resale)","29/06/2020"
"Wolverhampton City Council","http://opendatacommunities.org/id/metropolitan-district-council/wolverhampton","POST OFFICE COUNTER",9.12,"Youth Offending Team","9402","Comms - Postage","29/06/2020"
"Wolverhampton City Council","http://opendatacommunities.org/id/metropolitan-district-council/wolverhampton","COMBINED COURT",215,"CIN/CP Social Work Unit - Area 1","9222","Section 17","29/06/2020"
"Wolverhampton City Council","http://opendatacommunities.org/id/metropolitan-district-council/wolverhampton","Amazon.co.uk IA6R15DX5",21.66,"Vulnerable Young Persons Team","5969","Equipment - Purchase","29/06/2020"
"Wolverhampton City Council","http://opendatacommunities.org/id/metropolitan-district-council/wolverhampton","TVLICENSING.CO.UK",157.5,"Community Enablement","7392","Services - General Licences","29/06/2020"
"Wolverhampton City Council","http://opendatacommunities.org/id/metropolitan-district-council/wolverhampton","TVLICENSING.CO.UK",157.5,"Duke Street Bungalows","7392","Services - General Licences","29/06/2020"
"Wolverhampton City Council","http://opendatacommunities.org/id/metropolitan-district-council/wolverhampton","TVLICENSING.CO.UK",157.5,"Duke Street Bungalows","7392","Services - General Licences","29/06/2020"
"Wolverhampton City Council","http://opendatacommunities.org/id/metropolitan-district-council/wolverhampton","COMPANIES HOUSE",13,"Centralised External Legal Costs","9399","Services - Fees and Charges","29/06/2020"
"Wolverhampton City Council","http://opendatacommunities.org/id/metropolitan-district-council/wolverhampton","ALEXANDRA WEBSITE",177.41,"Food and Health & Safety","5137","Equipment - Purchase","29/06/2020"
"Wolverhampton City Council","http://opendatacommunities.org/id/metropolitan-district-council/wolverhampton","AMZNMktplace",33.82,"Food and Health & Safety","5999","Equipment - Purchase","29/06/2020"
"Wolverhampton City Council","http://opendatacommunities.org/id/metropolitan-district-council/wolverhampton","OAKLAND",686,"Destitute Plus","7011","Accommodation Costs","29/06/2020"
"Wolverhampton City Council","http://opendatacommunities.org/id/metropolitan-district-council/wolverhampton","OAKLAND",686,"Destitute Plus","7011","Accommodation Costs","29/06/2020"
"Wolverhampton City Council","http://opendatacommunities.org/id/metropolitan-district-council/wolverhampton","POST OFFICE COUNTER",46.2,"Adult Services - North","9402","Comms - Postage","29/06/2020"
"Wolverhampton City Council","http://opendatacommunities.org/id/metropolitan-district-council/wolverhampton","VW VAN CENTRE",419.59,"Fleet Management","5511","Services - Professional Fees","29/06/2020"
"Wolverhampton City Council","http://opendatacommunities.org/id/metropolitan-district-council/wolverhampton","Amazon.co.uk 2C83Z5W45",15.95,"Power2 Team","5969","Direct Work With Children","26/06/2020"
"Wolverhampton City Council","http://opendatacommunities.org/id/metropolitan-district-council/wolverhampton","123 REG LTD",15.99,"WV Active Marketing","5968","R4317","26/06/2020"
"Wolverhampton City Council","http://opendatacommunities.org/id/metropolitan-district-council/wolverhampton","ADOBE STOCK",19.99,"Communications & Marketing - General","5734","Subscriptions","26/06/2020"
"Wolverhampton City Council","http://opendatacommunities.org/id/metropolitan-district-council/wolverhampton","WOLVES FC",6,"Archives","7997","Books","26/06/2020"
"Wolverhampton City Council","http://opendatacommunities.org/id/metropolitan-district-council/wolverhampton","POUNDLAND",5,"Bradley Resource Centre","5310","Equipment - Purchase","26/06/2020"
"Wolverhampton City Council","http://opendatacommunities.org/id/metropolitan-district-council/wolverhampton","B&M 262 - WILLENHALL",13.1,"Bradley Resource Centre","5399","Equipment - Purchase","26/06/2020"
"Wolverhampton City Council","http://opendatacommunities.org/id/metropolitan-district-council/wolverhampton","DIXONS FAMILY BUTCHERS",92,"Bradley Resource Centre","5499","Provisions (Not for resale)","26/06/2020"
"Wolverhampton City Council","http://opendatacommunities.org/id/metropolitan-district-council/wolverhampton","ICELAND",118.04,"Key to Inspiration","5411","Provisions (Not for resale)","26/06/2020"
"Wolverhampton City Council","http://opendatacommunities.org/id/metropolitan-district-council/wolverhampton","ASDA SUPERSTORE",138.77,"Key to Inspiration","5411","Provisions (Not for resale)","26/06/2020"
"Wolverhampton City Council","http://opendatacommunities.org/id/metropolitan-district-council/wolverhampton","AMZ Amazon Business UK",-43.72,"LAC Transitions Team","5969","Independant Living Allowance","26/06/2020"
"Wolverhampton City Council","http://opendatacommunities.org/id/metropolitan-district-council/wolverhampton","AMZNMktplace",7.16,"Bradley Resource Centre","5999","Cleaning Supplies and Materials","26/06/2020"
"Wolverhampton City Council","http://opendatacommunities.org/id/metropolitan-district-council/wolverhampton","PO OLD HILL 0676",87.5,"LAC Transitions Team","6011","Client Allowances","26/06/2020"
"Wolverhampton City Council","http://opendatacommunities.org/id/metropolitan-district-council/wolverhampton","BLOOMS MENSWEAR",15.42,"Mayoral Expenses","5611","Clothing / Uniforms","26/06/2020"
"Wolverhampton City Council","http://opendatacommunities.org/id/metropolitan-district-council/wolverhampton","ALDI STORES LTD",9.28,"LAC Transitions Team","5411","Client Allowances","26/06/2020"
"Wolverhampton City Council","http://opendatacommunities.org/id/metropolitan-district-council/wolverhampton","APPLE.COM/BILL",9.99,"Managing Director","5735","Conference Expenses","26/06/2020"
"Wolverhampton City Council","http://opendatacommunities.org/id/metropolitan-district-council/wolverhampton","AMZNMktplace",26.97,"Upper Pendeford Farm Childrens Home","5999","Equipment - Health and Safety","26/06/2020"
"Wolverhampton City Council","http://opendatacommunities.org/id/metropolitan-district-council/wolverhampton","WM MORRISONS STORE",8.62,"Ernest Bold Court","5411","Provisions (Not for resale)","26/06/2020"
"Wolverhampton City Council","http://opendatacommunities.org/id/metropolitan-district-council/wolverhampton","ARGOS LTD",19.99,"CIN/CP Social Work Unit - Area 7","5310","Section 17","26/06/2020"
"Wolverhampton City Council","http://opendatacommunities.org/id/metropolitan-district-council/wolverhampton","PARCELFORCE WL",46.55,"Technical Support","4215","Computing - Purchase of Hardware","26/06/2020"
"Wolverhampton City Council","http://opendatacommunities.org/id/metropolitan-district-council/wolverhampton","AMZNMktplace",43.32,"Children & Family Contact Services","5999","First Aid Requisites","25/06/2020"
"Wolverhampton City Council","http://opendatacommunities.org/id/metropolitan-district-council/wolverhampton","AMZNMktplace",29.99,"Waste Coll & Recycling Serv General","5999","-","25/06/2020"
"Wolverhampton City Council","http://opendatacommunities.org/id/metropolitan-district-council/wolverhampton","SCREWFIX DIRECT",22.15,"Power2 Team","5200","Equipment - Purchase","25/06/2020"
"Wolverhampton City Council","http://opendatacommunities.org/id/metropolitan-district-council/wolverhampton","Amazon.co.uk IY79N7Q55",26.66,"Power2 Team","5969","Direct Work With Children","25/06/2020"
"Wolverhampton City Council","http://opendatacommunities.org/id/metropolitan-district-council/wolverhampton","AMZNMktplace",99.97,"Car Parks Operational Staff","5999","Equipment - Purchase","25/06/2020"
"Wolverhampton City Council","http://opendatacommunities.org/id/metropolitan-district-council/wolverhampton","ARGOS WOLVERHAMPTO",80,"Key to Inspiration","5310","Equipment - Purchase","25/06/2020"
"Wolverhampton City Council","http://opendatacommunities.org/id/metropolitan-district-council/wolverhampton","SAINSBURYS (2340)",20,"Key to Inspiration","5411","Client Allowances","25/06/2020"
"Wolverhampton City Council","http://opendatacommunities.org/id/metropolitan-district-council/wolverhampton","WM MORRISONS STORE",97.2,"ALV - Darts & Comedy","5411","-","25/06/2020"
"Wolverhampton City Council","http://opendatacommunities.org/id/metropolitan-district-council/wolverhampton","WM MORRISONS STORE",57.75,"Bradley Resource Centre","5411","Provisions (Not for resale)","25/06/2020"
"Wolverhampton City Council","http://opendatacommunities.org/id/metropolitan-district-council/wolverhampton","WILLENHALL BODY PANELS",16.95,"Street Lighting Maintenance","5533","Materials","25/06/2020"
"Wolverhampton City Council","http://opendatacommunities.org/id/metropolitan-district-council/wolverhampton","GAZEBOSHOP",-150,"Private Hire Vehicles","5998","Equipment - Purchase","25/06/2020"
"Wolverhampton City Council","http://opendatacommunities.org/id/metropolitan-district-council/wolverhampton","GAZEBOSHOP",150,"Private Hire Vehicles","5998","Equipment - Purchase","25/06/2020"
"Wolverhampton City Council","http://opendatacommunities.org/id/metropolitan-district-council/wolverhampton","ARGOS LTD",48.33,"Private Hire Vehicles","5310","Equipment - Purchase","25/06/2020"
"Wolverhampton City Council","http://opendatacommunities.org/id/metropolitan-district-council/wolverhampton","AMZNMktplace",92.14,"Aldersley Leisure Village","5999","Protective Clothing","25/06/2020"
"Wolverhampton City Council","http://opendatacommunities.org/id/metropolitan-district-council/wolverhampton","A2BGo Carz",10.7,"Power2 Team","4121","Public Transport","25/06/2020"
"Wolverhampton City Council","http://opendatacommunities.org/id/metropolitan-district-council/wolverhampton","A2BGo Carz",11.3,"Power2 Team","4121","Public Transport","25/06/2020"
"Wolverhampton City Council","http://opendatacommunities.org/id/metropolitan-district-council/wolverhampton","AMZNMKTPLACE AMAZON.CO",14.99,"ICT Services","5999","Computing - Purchase of Hardware","25/06/2020"
"Wolverhampton City Council","http://opendatacommunities.org/id/metropolitan-district-council/wolverhampton","DRI Nuance",349.99,"CIN/CP Social Work Unit - Area 8","5734","Computing - Purchase of Software","25/06/2020"
"Wolverhampton City Council","http://opendatacommunities.org/id/metropolitan-district-council/wolverhampton","AMZNMKTPLACE AMAZON.CO",21.24,"EIP Locality 1","5999","Equipment - Purchase","25/06/2020"
"Wolverhampton City Council","http://opendatacommunities.org/id/metropolitan-district-council/wolverhampton","EE TOP UP VESTA",10,"School Crossing Patrol","4814","Comms - Mobile Telephones","25/06/2020"
"Wolverhampton City Council","http://opendatacommunities.org/id/metropolitan-district-council/wolverhampton","AMZNMKTPLACE AMAZON.CO",88.2,"Road Safety","5999","Equipment - Purchase","25/06/2020"
"Wolverhampton City Council","http://opendatacommunities.org/id/metropolitan-district-council/wolverhampton","DVLA VEHICLE TAX",167.5,"Fleet Management","9311","R3004","25/06/2020"
"Wolverhampton City Council","http://opendatacommunities.org/id/metropolitan-district-council/wolverhampton","DVLA VEHICLE TAX",428.5,"Fleet Management","9311","R3004","25/06/2020"
"Wolverhampton City Council","http://opendatacommunities.org/id/metropolitan-district-council/wolverhampton","DVLA VEHICLE TAX",267.5,"Fleet Management","9311","R3004","25/06/2020"
"Wolverhampton City Council","http://opendatacommunities.org/id/metropolitan-district-council/wolverhampton","DVLA VEHICLE TAX",428.5,"Fleet Management","9311","R3004","25/06/2020"
"Wolverhampton City Council","http://opendatacommunities.org/id/metropolitan-district-council/wolverhampton","DVLA VEHICLE TAX",267.5,"Fleet Management","9311","R3004","25/06/2020"
"Wolverhampton City Council","http://opendatacommunities.org/id/metropolitan-district-council/wolverhampton","DVLA VEHICLE TAX",167.5,"Fleet Management","9311","R3004","25/06/2020"
"Wolverhampton City Council","http://opendatacommunities.org/id/metropolitan-district-council/wolverhampton","DVLA VEHICLE TAX",267.5,"Fleet Management","9311","R3004","25/06/2020"
"Wolverhampton City Council","http://opendatacommunities.org/id/metropolitan-district-council/wolverhampton","DVLA VEHICLE TAX",267.5,"Fleet Management","9311","R3004","25/06/2020"
"Wolverhampton City Council","http://opendatacommunities.org/id/metropolitan-district-council/wolverhampton","DVLA VEHICLE TAX",267.5,"Fleet Management","9311","R3004","25/06/2020"
"Wolverhampton City Council","http://opendatacommunities.org/id/metropolitan-district-council/wolverhampton","DVLA VEHICLE TAX",167.5,"Fleet Management","9311","R3004","25/06/2020"
"Wolverhampton City Council","http://opendatacommunities.org/id/metropolitan-district-council/wolverhampton","DVLA VEHICLE TAX",267.5,"Fleet Management","9311","R3004","25/06/2020"
"Wolverhampton City Council","http://opendatacommunities.org/id/metropolitan-district-council/wolverhampton","DVLA VEHICLE TAX",272.5,"Fleet Management","9311","R3004","25/06/2020"
"Wolverhampton City Council","http://opendatacommunities.org/id/metropolitan-district-council/wolverhampton","DVLA VEHICLE TAX",167.5,"Fleet Management","9311","R3004","25/06/2020"
"Wolverhampton City Council","http://opendatacommunities.org/id/metropolitan-district-council/wolverhampton","DVLA VEHICLE TAX",267.5,"Fleet Management","9311","R3004","25/06/2020"
"Wolverhampton City Council","http://opendatacommunities.org/id/metropolitan-district-council/wolverhampton","DVLA VEHICLE TAX",167.5,"Fleet Management","9311","R3004","25/06/2020"
"Wolverhampton City Council","http://opendatacommunities.org/id/metropolitan-district-council/wolverhampton","DVLA VEHICLE TAX",428.5,"Fleet Management","9311","R3004","25/06/2020"
"Wolverhampton City Council","http://opendatacommunities.org/id/metropolitan-district-council/wolverhampton","DVLA VEHICLE TAX",267.5,"Fleet Management","9311","R3004","25/06/2020"
"Wolverhampton City Council","http://opendatacommunities.org/id/metropolitan-district-council/wolverhampton","DVLA VEHICLE TAX",167.5,"Fleet Management","9311","R3004","25/06/2020"
"Wolverhampton City Council","http://opendatacommunities.org/id/metropolitan-district-council/wolverhampton","DVLA VEHICLE TAX",167.5,"Fleet Management","9311","R3004","25/06/2020"
"Wolverhampton City Council","http://opendatacommunities.org/id/metropolitan-district-council/wolverhampton","DVLA VEHICLE TAX",428.5,"Fleet Management","9311","R3004","25/06/2020"
"Wolverhampton City Council","http://opendatacommunities.org/id/metropolitan-district-council/wolverhampton","GAZEBOSHOP",-180,"Hickman Avenue Depot","5998","Equipment - Purchase","25/06/2020"
"Wolverhampton City Council","http://opendatacommunities.org/id/metropolitan-district-council/wolverhampton","GAZEBOSHOP",180,"Hickman Avenue Depot","5998","Equipment - Purchase","25/06/2020"
"Wolverhampton City Council","http://opendatacommunities.org/id/metropolitan-district-council/wolverhampton","AMZNMktplace",2.82,"Northicote Farm","5999","Materials","25/06/2020"
"Wolverhampton City Council","http://opendatacommunities.org/id/metropolitan-district-council/wolverhampton","Amazon.co.uk P49F15Y35",4.89,"Northicote Farm","5969","Materials","25/06/2020"
"Wolverhampton City Council","http://opendatacommunities.org/id/metropolitan-district-council/wolverhampton","FREEPIK & FLATICON",7.78,"Communications & Marketing - General","7221","Subscriptions","24/06/2020"
"Wolverhampton City Council","http://opendatacommunities.org/id/metropolitan-district-council/wolverhampton","B&M 262 - WILLENHALL",25.45,"Bradley Resource Centre","5399","Equipment - Purchase","24/06/2020"
"Wolverhampton City Council","http://opendatacommunities.org/id/metropolitan-district-council/wolverhampton","34SP.com Ltd",7.5,"Early Years & Universal Service","4816","Subscriptions","24/06/2020"
"Wolverhampton City Council","http://opendatacommunities.org/id/metropolitan-district-council/wolverhampton","CENTRAL ELECTRICAL DIS",80.4,"Street Lighting Maintenance","5732","Materials","24/06/2020"
"Wolverhampton City Council","http://opendatacommunities.org/id/metropolitan-district-council/wolverhampton","CENTRAL ELECTRICAL DIS",43.2,"Street Lighting Maintenance","5732","Materials","24/06/2020"
"Wolverhampton City Council","http://opendatacommunities.org/id/metropolitan-district-council/wolverhampton","TESCO STORES 5503",27.36,"Bradley Resource Centre","5411","Equipment - Purchase","24/06/2020"
"Wolverhampton City Council","http://opendatacommunities.org/id/metropolitan-district-council/wolverhampton","ROYAL CARPETS",416.67,"LAC Transitions Accommodation","5713","Client Allowances","24/06/2020"
"Wolverhampton City Council","http://opendatacommunities.org/id/metropolitan-district-council/wolverhampton","ROYAL CARPETS",333.33,"LAC Transitions Accommodation","5713","Client Allowances","24/06/2020"
"Wolverhampton City Council","http://opendatacommunities.org/id/metropolitan-district-council/wolverhampton","ROYAL CARPETS",316.67,"LAC Transitions Accommodation","5713","Client Allowances","24/06/2020"
"Wolverhampton City Council","http://opendatacommunities.org/id/metropolitan-district-council/wolverhampton","ROYAL CARPETS",216.67,"LAC Transitions Accommodation","5713","Client Allowances","24/06/2020"
"Wolverhampton City Council","http://opendatacommunities.org/id/metropolitan-district-council/wolverhampton","ARGOS LTD",50,"CIN/CP Social Work Unit - Area 7","5310","Section 17","24/06/2020"
"Wolverhampton City Council","http://opendatacommunities.org/id/metropolitan-district-council/wolverhampton","CURRYS ONLINE",39.99,"CIN/CP Social Work Unit - Area 8","5732","Computing - Purchase of Hardware","24/06/2020"
"Wolverhampton City Council","http://opendatacommunities.org/id/metropolitan-district-council/wolverhampton","123 REG LTD",9.99,"Technical Support","5968","Subscriptions","24/06/2020"
"Wolverhampton City Council","http://opendatacommunities.org/id/metropolitan-district-council/wolverhampton","IKEA LTD SHOP ONLINE",260.83,"LAC Transitions Team","5712","Client Allowances","24/06/2020"
"Wolverhampton City Council","http://opendatacommunities.org/id/metropolitan-district-council/wolverhampton","WWW.POSTOFFICESHOP.CO.",16.02,"School Crossing Patrol","5111","Comms - Postage","24/06/2020"
"Wolverhampton City Council","http://opendatacommunities.org/id/metropolitan-district-council/wolverhampton","RS SALES & DISTRIBUTIO",590,"Fleet Management","5999","Equipment - Purchase","24/06/2020"
"Wolverhampton City Council","http://opendatacommunities.org/id/metropolitan-district-council/wolverhampton","POST OFFICE COUNTER",78.06,"Fleet Management","9402","Comms - Postage","24/06/2020"
"Wolverhampton City Council","http://opendatacommunities.org/id/metropolitan-district-council/wolverhampton","SCREWFIX DIRECT",53.26,"Cemeteries","5200","Materials","24/06/2020"
"Wolverhampton City Council","http://opendatacommunities.org/id/metropolitan-district-council/wolverhampton","ARGOS LTD",5.83,"Cemeteries","5310","Equipment - Purchase","24/06/2020"
"Wolverhampton City Council","http://opendatacommunities.org/id/metropolitan-district-council/wolverhampton","123 REG LTD",619.5,"Strategic ICTS (ICT Serv Budget)","5968","Computing - Maint Agreements","24/06/2020"
"Wolverhampton City Council","http://opendatacommunities.org/id/metropolitan-district-council/wolverhampton","AMZNMKTPLACE AMAZON.CO",48.28,"Strategic ICTS (ICT Serv Budget)","5999","Computing - Purchase of Hardware","24/06/2020"
"Wolverhampton City Council","http://opendatacommunities.org/id/metropolitan-district-council/wolverhampton","B&M 262 - WILLENHALL",8,"Bradley Resource Centre","5399","Equipment - Purchase","24/06/2020"
"Wolverhampton City Council","http://opendatacommunities.org/id/metropolitan-district-council/wolverhampton","POST OFFICE COUNTER",132.6,"Macmillan Welfare Rights","9402","Comms - Postage","23/06/2020"
"Wolverhampton City Council","http://opendatacommunities.org/id/metropolitan-district-council/wolverhampton","WM MORRISONS STORE",102.6,"Bradley Resource Centre","5411","Provisions (Not for resale)","23/06/2020"
"Wolverhampton City Council","http://opendatacommunities.org/id/metropolitan-district-council/wolverhampton","CURRYS ONLINE",166.66,"LAC Transitions Team","5732","Client Allowances","23/06/2020"
"Wolverhampton City Council","http://opendatacommunities.org/id/metropolitan-district-council/wolverhampton","GEN REGISTER OFFICE",56,"CIN/CP Social Work Unit - Area 7","9399","Section 17","23/06/2020"
"Wolverhampton City Council","http://opendatacommunities.org/id/metropolitan-district-council/wolverhampton","TESCO ONLINE",29.98,"COVID 19 - Children�s Social Care","5999","Section 17","23/06/2020"
"Wolverhampton City Council","http://opendatacommunities.org/id/metropolitan-district-council/wolverhampton","PARCELFORCE WL",219.25,"Technical Support","4215","Computing - Purchase of Hardware","23/06/2020"
"Wolverhampton City Council","http://opendatacommunities.org/id/metropolitan-district-council/wolverhampton","ARGOS LTD",185.79,"LAC Transitions Team","5310","Client Allowances","23/06/2020"
"Wolverhampton City Council","http://opendatacommunities.org/id/metropolitan-district-council/wolverhampton","WWW.WMCA.CO.UK",18.33,"LAC Transitions Team","9399","Client Transport","23/06/2020"
"Wolverhampton City Council","http://opendatacommunities.org/id/metropolitan-district-council/wolverhampton","ARGOS LTD",108.32,"LAC Transitions Team","5310","Client Allowances","23/06/2020"
"Wolverhampton City Council","http://opendatacommunities.org/id/metropolitan-district-council/wolverhampton","WWW.POSTOFFICESHOP.CO.",-3.32,"School Crossing Patrol","5111","Comms - Postage","23/06/2020"
"Wolverhampton City Council","http://opendatacommunities.org/id/metropolitan-district-council/wolverhampton","AMZNMktplace",33.32,"Fleet Management","5999","Equipment - Purchase","23/06/2020"
"Wolverhampton City Council","http://opendatacommunities.org/id/metropolitan-district-council/wolverhampton","LOYD 37 CHURCH STREET",200,"Duke Street Bungalows","6011","Provisions (Not for resale)","23/06/2020"
"Wolverhampton City Council","http://opendatacommunities.org/id/metropolitan-district-council/wolverhampton","CURRYS T/SALES",499.98,"LAC Transitions Team","5732","Client Allowances","22/06/2020"
"Wolverhampton City Council","http://opendatacommunities.org/id/metropolitan-district-council/wolverhampton","CardtronicsUK",100,"Power2 Team","6011","Direct Work With Children","22/06/2020"
"Wolverhampton City Council","http://opendatacommunities.org/id/metropolitan-district-council/wolverhampton","CardtronicsUK",250,"Power2 Team","6011","Direct Work With Children","22/06/2020"
"Wolverhampton City Council","http://opendatacommunities.org/id/metropolitan-district-council/wolverhampton","ARGOS LTD",63.25,"LAC Transitions Team","5310","Client Allowances","22/06/2020"
"Wolverhampton City Council","http://opendatacommunities.org/id/metropolitan-district-council/wolverhampton","NETFLIX.COM",11.99,"Key to Inspiration","4899","Educ Trips, Holidays, Outings, Activity","22/06/2020"
"Wolverhampton City Council","http://opendatacommunities.org/id/metropolitan-district-council/wolverhampton","PRIMARK",79,"Key to Inspiration","5651","Client Allowances","22/06/2020"
"Wolverhampton City Council","http://opendatacommunities.org/id/metropolitan-district-council/wolverhampton","Amazon.co.uk EP7BB1IS5",24.47,"Key to Inspiration","5969","-","22/06/2020"
"Wolverhampton City Council","http://opendatacommunities.org/id/metropolitan-district-council/wolverhampton","ARGOS LTD",122.95,"Key to Inspiration","5310","-","22/06/2020"
"Wolverhampton City Council","http://opendatacommunities.org/id/metropolitan-district-council/wolverhampton","ARGOS LTD",122.95,"Key to Inspiration","5310","-","22/06/2020"
"Wolverhampton City Council","http://opendatacommunities.org/id/metropolitan-district-council/wolverhampton","AMZNFreeTime",1.99,"Key to Inspiration","5735","-","22/06/2020"
"Wolverhampton City Council","http://opendatacommunities.org/id/metropolitan-district-council/wolverhampton","AMZNMktplace",24.99,"Key to Inspiration","5999","-","22/06/2020"
"Wolverhampton City Council","http://opendatacommunities.org/id/metropolitan-district-council/wolverhampton","WM MORRISONS STORE",92.2,"ALV - Darts & Comedy","5411","-","22/06/2020"
"Wolverhampton City Council","http://opendatacommunities.org/id/metropolitan-district-council/wolverhampton","SCREWFIX DIRECT",20.97,"ALV - Darts & Comedy","5200","-","22/06/2020"
"Wolverhampton City Council","http://opendatacommunities.org/id/metropolitan-district-council/wolverhampton","SITEBOX LIMITED",299.9,"COVID 19 - Food Distribution Hub","5085","Materials","22/06/2020"
"Wolverhampton City Council","http://opendatacommunities.org/id/metropolitan-district-council/wolverhampton","AMZNMKTPLACE AMAZON.CO",23.97,"ALV - Darts & Comedy","5999","-","22/06/2020"
"Wolverhampton City Council","http://opendatacommunities.org/id/metropolitan-district-council/wolverhampton","WWW.ICELAND.CO.UK",137.33,"Bradley Resource Centre","5411","Provisions (Not for resale)","22/06/2020"
"Wolverhampton City Council","http://opendatacommunities.org/id/metropolitan-district-council/wolverhampton","ASHBY TRADE SIGNS",161.78,"Document Centre - General","7399","Materials","22/06/2020"
"Wolverhampton City Council","http://opendatacommunities.org/id/metropolitan-district-council/wolverhampton","ARGOS LTD",4.16,"LAC Transitions Team","5310","Client Allowances","22/06/2020"
"Wolverhampton City Council","http://opendatacommunities.org/id/metropolitan-district-council/wolverhampton","Vimeo PRO",189,"LEP - Leadership & Management Programme","5968","Subscriptions","22/06/2020"
"Wolverhampton City Council","http://opendatacommunities.org/id/metropolitan-district-council/wolverhampton","AMZNMktplace",16.57,"Delivery & OCE Development","5999","-","22/06/2020"
"Wolverhampton City Council","http://opendatacommunities.org/id/metropolitan-district-council/wolverhampton","ASDA STORES",6.83,"Ernest Bold Court","5411","Provisions (Not for resale)","22/06/2020"
"Wolverhampton City Council","http://opendatacommunities.org/id/metropolitan-district-council/wolverhampton","ASDA STORES",1.5,"Ernest Bold Court","5411","Provisions (Not for resale)","22/06/2020"
"Wolverhampton City Council","http://opendatacommunities.org/id/metropolitan-district-council/wolverhampton","TOOLSTATION LTD",4.04,"Public Conveniences","5211","R4007","22/06/2020"
"Wolverhampton City Council","http://opendatacommunities.org/id/metropolitan-district-council/wolverhampton","FACEBK 7EDNAS2D22",600,"Business Support Services","7311","Marketing \ Non-staff advertising","22/06/2020"
"Wolverhampton City Council","http://opendatacommunities.org/id/metropolitan-district-council/wolverhampton","SAINSBURYS 2040",27.49,"Duke Street Bungalows","5411","R4010","22/06/2020"
"Wolverhampton City Council","http://opendatacommunities.org/id/metropolitan-district-council/wolverhampton","ARGOS LTD",85.94,"Duke Street Bungalows","5310","R4010","22/06/2020"
"Wolverhampton City Council","http://opendatacommunities.org/id/metropolitan-district-council/wolverhampton","AMZNMKTPLACE AMAZON.CO",47.5,"SEN Early Years Team","5999","Equipment - Purchase","22/06/2020"
"Wolverhampton City Council","http://opendatacommunities.org/id/metropolitan-district-council/wolverhampton","AMZNMKTPLACE AMAZON.CO",79.98,"SEN Early Years Team","5999","Equipment - Purchase","22/06/2020"
"Wolverhampton City Council","http://opendatacommunities.org/id/metropolitan-district-council/wolverhampton","Wix.com",93.13,"Technical Support","5817","Subscriptions","22/06/2020"
"Wolverhampton City Council","http://opendatacommunities.org/id/metropolitan-district-council/wolverhampton","123 REG LTD",9.99,"Technical Support","5968","Subscriptions","22/06/2020"
"Wolverhampton City Council","http://opendatacommunities.org/id/metropolitan-district-council/wolverhampton","Wix.com",49.6,"Technical Support","5817","Subscriptions","22/06/2020"
"Wolverhampton City Council","http://opendatacommunities.org/id/metropolitan-district-council/wolverhampton","WIX.COM",93.13,"Technical Support","5968","Subscriptions","22/06/2020"
"Wolverhampton City Council","http://opendatacommunities.org/id/metropolitan-district-council/wolverhampton","AMZNMKTPLACE AMAZON.CO",119.96,"Waste Coll & Recycling Serv General","5999","-","19/06/2020"
"Wolverhampton City Council","http://opendatacommunities.org/id/metropolitan-district-council/wolverhampton","ARGOS LTD",325.42,"LAC Transitions Team","5310","Client Allowances","19/06/2020"
"Wolverhampton City Council","http://opendatacommunities.org/id/metropolitan-district-council/wolverhampton","J D SPORTS PLC",15.1,"Key to Inspiration","5941","Client Allowances","19/06/2020"
"Wolverhampton City Council","http://opendatacommunities.org/id/metropolitan-district-council/wolverhampton","Amazon Music B54WO1OV5",3.99,"Key to Inspiration","5735","-","19/06/2020"
"Wolverhampton City Council","http://opendatacommunities.org/id/metropolitan-district-council/wolverhampton","HOME BARGAINS",5.68,"Technician","5251","Cleaning Supplies and Materials","19/06/2020"
"Wolverhampton City Council","http://opendatacommunities.org/id/metropolitan-district-council/wolverhampton","GRANTS ONLINE",99,"Citizenship, Language & Learning","5968","Subscriptions","19/06/2020"
"Wolverhampton City Council","http://opendatacommunities.org/id/metropolitan-district-council/wolverhampton","ICELAND",171.78,"Key to Inspiration","5411","Provisions (Not for resale)","19/06/2020"
"Wolverhampton City Council","http://opendatacommunities.org/id/metropolitan-district-council/wolverhampton","ASDA SUPERSTORE",146.6,"Key to Inspiration","5411","Provisions (Not for resale)","19/06/2020"
"Wolverhampton City Council","http://opendatacommunities.org/id/metropolitan-district-council/wolverhampton","gearbest.com",27.88,"Education Business Partnership","5732","-","19/06/2020"
"Wolverhampton City Council","http://opendatacommunities.org/id/metropolitan-district-council/wolverhampton","AMZNMktplace",27.72,"Ernest Bold Court","5999","Equipment - Purchase","19/06/2020"
"Wolverhampton City Council","http://opendatacommunities.org/id/metropolitan-district-council/wolverhampton","Amazon.co.uk 6I5XH40N5",11.1,"Fostering Team & Allowances","5969","Stationery","19/06/2020"
"Wolverhampton City Council","http://opendatacommunities.org/id/metropolitan-district-council/wolverhampton","CURRYS ONLINE",432.49,"Pupil Premium","5732","Computing - Purchase of Hardware","19/06/2020"
"Wolverhampton City Council","http://opendatacommunities.org/id/metropolitan-district-council/wolverhampton","FRED PARKIN LTD",145,"LAC Transitions Team","5712","Client Allowances","19/06/2020"
"Wolverhampton City Council","http://opendatacommunities.org/id/metropolitan-district-council/wolverhampton","FRED PARKIN LTD",130,"LAC Transitions Team","5712","Client Allowances","19/06/2020"
"Wolverhampton City Council","http://opendatacommunities.org/id/metropolitan-district-council/wolverhampton","BARCLAYS",40,"LAC Transitions Team","6011","-","19/06/2020"
"Wolverhampton City Council","http://opendatacommunities.org/id/metropolitan-district-council/wolverhampton","AMZNMKTPLACE AMAZON.CO",169.9,"Youth Offending Team","5999","Cleaning Supplies and Materials","19/06/2020"
"Wolverhampton City Council","http://opendatacommunities.org/id/metropolitan-district-council/wolverhampton","AMZNMktplace",141.63,"LAC Transitions Team","5999","Client Allowances","19/06/2020"
"Wolverhampton City Council","http://opendatacommunities.org/id/metropolitan-district-council/wolverhampton","WWW.MACLINGROUP.CO.UK",29.73,"The Maltings","2842","Cleaning Supplies and Materials","19/06/2020"
"Wolverhampton City Council","http://opendatacommunities.org/id/metropolitan-district-council/wolverhampton","HARMONY FIRE",1469.4,"COVID 19 - Personal Protective equipment","1740","Equipment - Health and Safety","19/06/2020"
"Wolverhampton City Council","http://opendatacommunities.org/id/metropolitan-district-council/wolverhampton","ARGOS LTD",147.48,"EIP Locality 3","5310","Grant Payments","19/06/2020"
"Wolverhampton City Council","http://opendatacommunities.org/id/metropolitan-district-council/wolverhampton","AMZNMKTPLACE AMAZON.CO",37.49,"CIN/CP Social Work Unit - Area 7","5999","Equipment - Purchase","19/06/2020"
"Wolverhampton City Council","http://opendatacommunities.org/id/metropolitan-district-council/wolverhampton","WWW.POSTOFFICESHOP.CO.",133.32,"School Crossing Patrol","5111","Comms - Postage","19/06/2020"
"Wolverhampton City Council","http://opendatacommunities.org/id/metropolitan-district-council/wolverhampton","PAYPAL  GRANITEWORK",175.7,"Northicote Farm","8931","Protective Clothing","19/06/2020"
"Wolverhampton City Council","http://opendatacommunities.org/id/metropolitan-district-council/wolverhampton","AMZ radmoreandtucker",27.68,"Northicote Farm","5261","Equipment - Purchase","19/06/2020"
"Wolverhampton City Council","http://opendatacommunities.org/id/metropolitan-district-council/wolverhampton","MACHINE MART LTD",219,"Cemeteries","5722","Equipment - Purchase","18/06/2020"
"Wolverhampton City Council","http://opendatacommunities.org/id/metropolitan-district-council/wolverhampton","ARGOS LTD",88,"LAC Transitions Team","5310","Independant Living Allowance","18/06/2020"
"Wolverhampton City Council","http://opendatacommunities.org/id/metropolitan-district-council/wolverhampton","PSA Parts",684.7,"Strategic ICTS (ICT Serv Budget)","5732","Computing - Purchase of Hardware","18/06/2020"
"Wolverhampton City Council","http://opendatacommunities.org/id/metropolitan-district-council/wolverhampton","FACEBK MP2H6UWAR2",500,"Communications & Marketing - General","7311","R4317","18/06/2020"
"Wolverhampton City Council","http://opendatacommunities.org/id/metropolitan-district-council/wolverhampton","AMZNMKTPLACE AMAZON.CO",44.92,"Key to Inspiration","5999","-","18/06/2020"
"Wolverhampton City Council","http://opendatacommunities.org/id/metropolitan-district-council/wolverhampton","SCREWFIX DIRECT",31.78,"ALV - Darts & Comedy","5200","-","18/06/2020"
"Wolverhampton City Council","http://opendatacommunities.org/id/metropolitan-district-council/wolverhampton","AMZNMktplace",29.3,"ALV - Darts & Comedy","5999","-","18/06/2020"
"Wolverhampton City Council","http://opendatacommunities.org/id/metropolitan-district-council/wolverhampton","WM MORRISONS STORE",128.5,"Bradley Resource Centre","5411","Provisions (Not for resale)","18/06/2020"
"Wolverhampton City Council","http://opendatacommunities.org/id/metropolitan-district-council/wolverhampton","UKN01371",66.67,"LAC Transitions Team","6011","Client Allowances","18/06/2020"
"Wolverhampton City Council","http://opendatacommunities.org/id/metropolitan-district-council/wolverhampton","PO ROUGH HAY 0792",60,"Key to Inspiration","6011","Provisions (Not for resale)","18/06/2020"
"Wolverhampton City Council","http://opendatacommunities.org/id/metropolitan-district-council/wolverhampton","WWW.WOLVERHAMPTON.GOV.",22.5,"LAC Transitions Team","9399","Client Allowances","18/06/2020"
"Wolverhampton City Council","http://opendatacommunities.org/id/metropolitan-district-council/wolverhampton","CardtronicsUK",180,"LAC Transitions Team","6011","Client Allowances","18/06/2020"
"Wolverhampton City Council","http://opendatacommunities.org/id/metropolitan-district-council/wolverhampton","CardtronicsUK",250,"LAC Transitions Team","6011","Client Allowances","18/06/2020"
"Wolverhampton City Council","http://opendatacommunities.org/id/metropolitan-district-council/wolverhampton","Amazon.co.uk O007A2SQ5",31.47,"Youth Offending Team","5969","Cleaning Supplies and Materials","18/06/2020"
"Wolverhampton City Council","http://opendatacommunities.org/id/metropolitan-district-council/wolverhampton","WWW.VOUCHEREXPRESS.CO.",245.75,"Youth Offending Team","5947","Provisions (Not for resale)","18/06/2020"
"Wolverhampton City Council","http://opendatacommunities.org/id/metropolitan-district-council/wolverhampton","POST OFFICE COUNTER",8.8,"Educational Studies Delivery Area","9402","Comms - Postage","18/06/2020"
"Wolverhampton City Council","http://opendatacommunities.org/id/metropolitan-district-council/wolverhampton","AMZNMktplace",37.33,"SEN Sensory Inclusion","5999","Equipment - Purchase","18/06/2020"
"Wolverhampton City Council","http://opendatacommunities.org/id/metropolitan-district-council/wolverhampton","KONICA MINOLTA BUSINES",13.87,"Music Support Team","7399","Equipment - R & M","18/06/2020"
"Wolverhampton City Council","http://opendatacommunities.org/id/metropolitan-district-council/wolverhampton","ARGOS LTD",9.99,"Waste Coll & Recycling Serv General","5310","-","17/06/2020"
"Wolverhampton City Council","http://opendatacommunities.org/id/metropolitan-district-council/wolverhampton","WWW.EUROPALITE.EU",216,"Waste Coll & Recycling Serv General","5999","-","17/06/2020"
"Wolverhampton City Council","http://opendatacommunities.org/id/metropolitan-district-council/wolverhampton","AMZNMKTPLACE AMAZON.CO",49.99,"Car Parks Operational Staff","5999","Equipment - Purchase","17/06/2020"
"Wolverhampton City Council","http://opendatacommunities.org/id/metropolitan-district-council/wolverhampton","NAMESCO",14.99,"Headstart - Young People Engagement","4816","R4317","17/06/2020"
"Wolverhampton City Council","http://opendatacommunities.org/id/metropolitan-district-council/wolverhampton","WM MORRISONS STORE",101.15,"ALV - Darts & Comedy","5411","-","17/06/2020"
"Wolverhampton City Council","http://opendatacommunities.org/id/metropolitan-district-council/wolverhampton","SCREWFIX DIRECT",29.97,"ALV - Darts & Comedy","5200","-","17/06/2020"
"Wolverhampton City Council","http://opendatacommunities.org/id/metropolitan-district-council/wolverhampton","SCREWFIX DIRECT",11.56,"ALV - Darts & Comedy","5200","-","17/06/2020"
"Wolverhampton City Council","http://opendatacommunities.org/id/metropolitan-district-council/wolverhampton","ZORO UK",76.83,"COVID 19 - Food Distribution Hub","5072","Materials","17/06/2020"
"Wolverhampton City Council","http://opendatacommunities.org/id/metropolitan-district-council/wolverhampton","TVLICENSING.CO.UK",157.5,"The Little Civic","7392","Subscriptions","17/06/2020"
"Wolverhampton City Council","http://opendatacommunities.org/id/metropolitan-district-council/wolverhampton","STATIONERY OFFICE BOOK",76.38,"Revenues","5942","-","17/06/2020"
"Wolverhampton City Council","http://opendatacommunities.org/id/metropolitan-district-council/wolverhampton","PO OLD HILL 0676",154.17,"LAC Transitions Team","6011","Client Allowances","17/06/2020"
"Wolverhampton City Council","http://opendatacommunities.org/id/metropolitan-district-council/wolverhampton","PO CARTERS GREEN 1652",66.67,"LAC Transitions Team","6011","Client Allowances","17/06/2020"
"Wolverhampton City Council","http://opendatacommunities.org/id/metropolitan-district-council/wolverhampton","ALDI 31 778",9.6,"LAC Transitions Team","5411","Client Allowances","17/06/2020"
"Wolverhampton City Council","http://opendatacommunities.org/id/metropolitan-district-council/wolverhampton","M&C RESRVTION SVCS LTD",220.83,"Regional Adoption Agency","7011","Accommodation Costs","17/06/2020"
"Wolverhampton City Council","http://opendatacommunities.org/id/metropolitan-district-council/wolverhampton","CT WOLVERHAMPTON",140,"LAC Transitions Team","8398","Client Allowances","17/06/2020"
"Wolverhampton City Council","http://opendatacommunities.org/id/metropolitan-district-council/wolverhampton","AMZNMktplace",7.99,"Youth Offending Team","5999","Educ Trips, Holidays, Outings, Activity","17/06/2020"
"Wolverhampton City Council","http://opendatacommunities.org/id/metropolitan-district-council/wolverhampton","TOOLSTATION LTD",3.99,"Public Conveniences","5211","Equipment - R & M","17/06/2020"
"Wolverhampton City Council","http://opendatacommunities.org/id/metropolitan-district-council/wolverhampton","ASDA GROCERIES ONLINE",-0.36,"Upper Pendeford Farm Childrens Home","5411","Provisions (Not for resale)","17/06/2020"
"Wolverhampton City Council","http://opendatacommunities.org/id/metropolitan-district-council/wolverhampton","ASDA GROCERIES ONLINE",247.47,"Upper Pendeford Farm Childrens Home","5411","Provisions (Not for resale)","17/06/2020"
"Wolverhampton City Council","http://opendatacommunities.org/id/metropolitan-district-council/wolverhampton","SSE",152.1,"LAC Transitions Accommodation","4900","Client Allowances","17/06/2020"
"Wolverhampton City Council","http://opendatacommunities.org/id/metropolitan-district-council/wolverhampton","VOICESCOMIN VOICESCOMI",347.14,"Communications & Marketing - General","7929","R4317","16/06/2020"
"Wolverhampton City Council","http://opendatacommunities.org/id/metropolitan-district-council/wolverhampton","WM MORRISONS STORE",40.02,"Bradley Resource Centre","5411","Provisions (Not for resale)","16/06/2020"
"Wolverhampton City Council","http://opendatacommunities.org/id/metropolitan-district-council/wolverhampton","WWW.ICELAND.CO.UK",77.1,"Bradley Resource Centre","5411","Provisions (Not for resale)","16/06/2020"
"Wolverhampton City Council","http://opendatacommunities.org/id/metropolitan-district-council/wolverhampton","WWW.SCAFFTAG.CO.UK",62.13,"Technician","5111","R4007","16/06/2020"
"Wolverhampton City Council","http://opendatacommunities.org/id/metropolitan-district-council/wolverhampton","VALUE PRODUCTS LTD",14.95,"Technician","5999","R4009","16/06/2020"
"Wolverhampton City Council","http://opendatacommunities.org/id/metropolitan-district-council/wolverhampton","THE PLASTIC PEOPLE",23.18,"Technician","5200","R4007","16/06/2020"
"Wolverhampton City Council","http://opendatacommunities.org/id/metropolitan-district-council/wolverhampton","WWW.TOOLSTATION.COM",22,"Culwell Street Depot","5251","Equipment - Health and Safety","16/06/2020"
"Wolverhampton City Council","http://opendatacommunities.org/id/metropolitan-district-council/wolverhampton","DISCLOSURE & BARRING",10.83,"Head of Service Specialist Int Support","9399","Subscriptions","16/06/2020"
"Wolverhampton City Council","http://opendatacommunities.org/id/metropolitan-district-council/wolverhampton","PAYPAL  REZUMEUKLTD",79.99,"Head of Service Specialist Int Support","7392","Publications","16/06/2020"
"Wolverhampton City Council","http://opendatacommunities.org/id/metropolitan-district-council/wolverhampton","SEVERN TRENT WATER",72.82,"LAC Transitions Team","4900","-","16/06/2020"
"Wolverhampton City Council","http://opendatacommunities.org/id/metropolitan-district-council/wolverhampton","AO RETAIL LIMITED",274.17,"LAC Transitions Team","5722","Client Allowances","16/06/2020"
"Wolverhampton City Council","http://opendatacommunities.org/id/metropolitan-district-council/wolverhampton","AO RETAIL LIMITED",249.17,"LAC Transitions Team","5722","Client Allowances","16/06/2020"
"Wolverhampton City Council","http://opendatacommunities.org/id/metropolitan-district-council/wolverhampton","ASDA GEORGE COM LEEDS",153.33,"LAC Transitions Team","5411","Client Allowances","16/06/2020"
"Wolverhampton City Council","http://opendatacommunities.org/id/metropolitan-district-council/wolverhampton","INTERFLORA BRITISH UNI",39.17,"Fostering Team & Allowances","5992","Subsistence","16/06/2020"
"Wolverhampton City Council","http://opendatacommunities.org/id/metropolitan-district-council/wolverhampton","INTERFLORA BRITISH UNI",39.17,"Fostering Team & Allowances","5992","Subsistence","16/06/2020"
"Wolverhampton City Council","http://opendatacommunities.org/id/metropolitan-district-council/wolverhampton","INTERFLORA BRITISH UNI",39.17,"Fostering Team & Allowances","5992","Subsistence","16/06/2020"
"Wolverhampton City Council","http://opendatacommunities.org/id/metropolitan-district-council/wolverhampton","B&M RETAIL LTD",163.77,"LAC Transitions Team","5399","Client Allowances","16/06/2020"
"Wolverhampton City Council","http://opendatacommunities.org/id/metropolitan-district-council/wolverhampton","Amazon.co.uk 5Q07A9FU5",83.32,"Youth Offending Team","5969","Printing","16/06/2020"
"Wolverhampton City Council","http://opendatacommunities.org/id/metropolitan-district-council/wolverhampton","TOOLSTATION LTD",1.37,"Public Conveniences","5211","Equipment - R & M","16/06/2020"
"Wolverhampton City Council","http://opendatacommunities.org/id/metropolitan-district-council/wolverhampton","AMZNMktplace",38.85,"Upper Pendeford Farm Childrens Home","5999","Equipment - Purchase","16/06/2020"
"Wolverhampton City Council","http://opendatacommunities.org/id/metropolitan-district-council/wolverhampton","ROYAL CARPETS",165,"LAC Transitions Accommodation","5713","Client Allowances","16/06/2020"
"Wolverhampton City Council","http://opendatacommunities.org/id/metropolitan-district-council/wolverhampton","WM MORRISONS STORE",42.82,"Ernest Bold Court","5411","Provisions (Not for resale)","16/06/2020"
"Wolverhampton City Council","http://opendatacommunities.org/id/metropolitan-district-council/wolverhampton","ARGOS LTD",36.62,"LAC Transitions Team","5310","Client Allowances","16/06/2020"
"Wolverhampton City Council","http://opendatacommunities.org/id/metropolitan-district-council/wolverhampton","ROOKERY Sainsburys Ba",200,"Duke Street Bungalows","6011","Provisions (Not for resale)","16/06/2020"
"Wolverhampton City Council","http://opendatacommunities.org/id/metropolitan-district-council/wolverhampton","CIPD MEMBERSHIP RENEWA",163,"Apprenticeships","8999","Training Expenses","16/06/2020"
"Wolverhampton City Council","http://opendatacommunities.org/id/metropolitan-district-council/wolverhampton","CREATIVE EDUCATION",20,"Workforce Development","8299","Training Expenses","16/06/2020"
"Wolverhampton City Council","http://opendatacommunities.org/id/metropolitan-district-council/wolverhampton","AMZNMKTPLACE AMAZON.CO",17.04,"Community Enablement","5999","-","16/06/2020"
"Wolverhampton City Council","http://opendatacommunities.org/id/metropolitan-district-council/wolverhampton","SAINSBURYS SACAT 2040",4.5,"Ernest Bold Court","5411","Provisions (Not for resale)","15/06/2020"
"Wolverhampton City Council","http://opendatacommunities.org/id/metropolitan-district-council/wolverhampton","APPLE.COM/BILL",2.07,"Corporate Parenting","5735","Computing - Purchase of Software","15/06/2020"
"Wolverhampton City Council","http://opendatacommunities.org/id/metropolitan-district-council/wolverhampton","AMZNMktplace",8.89,"Youth Offending Team","5999","Educ Trips, Holidays, Outings, Activity","15/06/2020"
"Wolverhampton City Council","http://opendatacommunities.org/id/metropolitan-district-council/wolverhampton","AMZNMktplace",5.25,"Youth Offending Team","5999","Educ Trips, Holidays, Outings, Activity","15/06/2020"
"Wolverhampton City Council","http://opendatacommunities.org/id/metropolitan-district-council/wolverhampton","ASDA STORES 7134",5,"Upper Pendeford Farm Childrens Home","5411","Provisions (Not for resale)","15/06/2020"
"Wolverhampton City Council","http://opendatacommunities.org/id/metropolitan-district-council/wolverhampton","AMZNMktplace",19.99,"Business Support Services","5999","Equipment - Purchase","15/06/2020"
"Wolverhampton City Council","http://opendatacommunities.org/id/metropolitan-district-council/wolverhampton","ARGOS LTD",219.99,"LAC Transitions Team","5310","Client Allowances","15/06/2020"
"Wolverhampton City Council","http://opendatacommunities.org/id/metropolitan-district-council/wolverhampton","B&M RETAIL LTD",12.49,"LAC Transitions Accommodation","5310","Client Allowances","15/06/2020"
"Wolverhampton City Council","http://opendatacommunities.org/id/metropolitan-district-council/wolverhampton","PAYPAL  CKTHOLDINGS",1080,"COVID 19 - Public Health","7399","Equipment - R & M","15/06/2020"
"Wolverhampton City Council","http://opendatacommunities.org/id/metropolitan-district-council/wolverhampton","WWW.WMSPLC.CO.UK",120,"COVID 19 - Public Health","5047","Equipment - Health and Safety","15/06/2020"
"Wolverhampton City Council","http://opendatacommunities.org/id/metropolitan-district-council/wolverhampton","PAYPAL  CORENEC ONBUY.",230,"COVID 19 - Public Health","5732","Equipment - Health and Safety","15/06/2020"
"Wolverhampton City Council","http://opendatacommunities.org/id/metropolitan-district-council/wolverhampton","QUEENSWAY INTERIOR",224.17,"EIP Locality 4","5712","Grant Payments to Individuals","15/06/2020"
"Wolverhampton City Council","http://opendatacommunities.org/id/metropolitan-district-council/wolverhampton","Amazon.co.uk 6S3136UT5",31.42,"CIN/CP Social Work Unit - Area 5","5969","Equipment - Purchase","15/06/2020"
"Wolverhampton City Council","http://opendatacommunities.org/id/metropolitan-district-council/wolverhampton","CO-OP GROUP 070361",16.2,"Northicote Farm","5411","Provisions (Not for resale)","15/06/2020"
"Wolverhampton City Council","http://opendatacommunities.org/id/metropolitan-district-council/wolverhampton","HOME BARGAINS WOLVERHA",25.8,"Passenger Transport - General","5251","-","15/06/2020"
"Wolverhampton City Council","http://opendatacommunities.org/id/metropolitan-district-council/wolverhampton","LAPTOPSCREEN.CO.UK",286.42,"Strategic ICTS (ICT Serv Budget)","5734","Computing - Purchase of Hardware","15/06/2020"
"Wolverhampton City Council","http://opendatacommunities.org/id/metropolitan-district-council/wolverhampton","IT PARTS EUROPE LIMI",107.98,"Strategic ICTS (ICT Serv Budget)","5732","Computing - Purchase of Hardware","15/06/2020"
"Wolverhampton City Council","http://opendatacommunities.org/id/metropolitan-district-council/wolverhampton","Amazon.co.uk WY7FT3OP5",1.63,"Power2 Team","5969","Direct Work With Children","15/06/2020"
"Wolverhampton City Council","http://opendatacommunities.org/id/metropolitan-district-council/wolverhampton","Amazon.co.uk Y665P4HU5",13.67,"Power2 Team","5969","Direct Work With Children","15/06/2020"
"Wolverhampton City Council","http://opendatacommunities.org/id/metropolitan-district-council/wolverhampton","UK DEED POLL SERVICE L",48,"Lac Transitions","7299","Services - Supplies & Services to users","15/06/2020"
"Wolverhampton City Council","http://opendatacommunities.org/id/metropolitan-district-council/wolverhampton","WWW.TOOLSTATION.COM",113,"Car Parks Operational Staff","5251","Equipment - Purchase","15/06/2020"
"Wolverhampton City Council","http://opendatacommunities.org/id/metropolitan-district-council/wolverhampton","NEW LOOK INTERNET",101.7,"Key to Inspiration","5621","-","15/06/2020"
"Wolverhampton City Council","http://opendatacommunities.org/id/metropolitan-district-council/wolverhampton","SCREWFIX DIRECT",54.97,"ALV - Darts & Comedy","5200","-","15/06/2020"
"Wolverhampton City Council","http://opendatacommunities.org/id/metropolitan-district-council/wolverhampton","DIXONS FAMILY BUTCHERS",50,"Bradley Resource Centre","5499","Provisions (Not for resale)","15/06/2020"
"Wolverhampton City Council","http://opendatacommunities.org/id/metropolitan-district-council/wolverhampton","WM MORRISONS STORE",163.24,"Bradley Resource Centre","5411","Provisions (Not for resale)","15/06/2020"
"Wolverhampton City Council","http://opendatacommunities.org/id/metropolitan-district-council/wolverhampton","CardtronicsUK",10,"LAC Transitions Accommodation","6011","Client Allowances","15/06/2020"
"Wolverhampton City Council","http://opendatacommunities.org/id/metropolitan-district-council/wolverhampton","PAYPAL  NORTHWESTLA EB",116.97,"Bradley Resource Centre","5169","Cleaning Supplies and Materials","15/06/2020"
"Wolverhampton City Council","http://opendatacommunities.org/id/metropolitan-district-council/wolverhampton","ASDA GEORGE COM LEEDS",25.95,"EIP Locality 4","5411","Grant Payments","15/06/2020"
"Wolverhampton City Council","http://opendatacommunities.org/id/metropolitan-district-council/wolverhampton","WWW.HOMELESS.ORG.UK",45,"Supported Accommodation Provider Payment","8398","Professional fees","12/06/2020"
"Wolverhampton City Council","http://opendatacommunities.org/id/metropolitan-district-council/wolverhampton","SPORTSDIRECT.COM",28.99,"Key to Inspiration","5941","-","12/06/2020"
"Wolverhampton City Council","http://opendatacommunities.org/id/metropolitan-district-council/wolverhampton","WM MORRISONS STORE",6.4,"ALV - Darts & Comedy","5411","-","12/06/2020"
"Wolverhampton City Council","http://opendatacommunities.org/id/metropolitan-district-council/wolverhampton","WM MORRISONS STORE",87.2,"ALV - Darts & Comedy","5411","-","12/06/2020"
"Wolverhampton City Council","http://opendatacommunities.org/id/metropolitan-district-council/wolverhampton","SCREWFIX DIRECT",38.28,"ALV - Darts & Comedy","5200","-","12/06/2020"
"Wolverhampton City Council","http://opendatacommunities.org/id/metropolitan-district-council/wolverhampton","AMZNMktplace",104.99,"Customer Services","5999","Equipment - Purchase","12/06/2020"
"Wolverhampton City Council","http://opendatacommunities.org/id/metropolitan-district-council/wolverhampton","ICELAND",192.62,"Key to Inspiration","5411","Provisions (Not for resale)","12/06/2020"
"Wolverhampton City Council","http://opendatacommunities.org/id/metropolitan-district-council/wolverhampton","ICELAND",31.98,"Key to Inspiration","5411","Provisions (Not for resale)","12/06/2020"
"Wolverhampton City Council","http://opendatacommunities.org/id/metropolitan-district-council/wolverhampton","BARCLAYS",180,"Key to Inspiration","6011","Provisions (Not for resale)","12/06/2020"
"Wolverhampton City Council","http://opendatacommunities.org/id/metropolitan-district-council/wolverhampton","PAYPAL  REZUMEUKLTD",69,"Key to Inspiration","7392","R4007","12/06/2020"
"Wolverhampton City Council","http://opendatacommunities.org/id/metropolitan-district-council/wolverhampton","Amazon.co.uk 207AC8X65",43.72,"LAC Transitions Team","5969","Independant Living Allowance","12/06/2020"
"Wolverhampton City Council","http://opendatacommunities.org/id/metropolitan-district-council/wolverhampton","DUDLEY MBC  INTERN",150,"Education Business Partnership","8999","Professional fees","12/06/2020"
"Wolverhampton City Council","http://opendatacommunities.org/id/metropolitan-district-council/wolverhampton","AMZNMKTPLACE AMAZON.CO",9.42,"Bert Williams Leisure Centre","5999","-","12/06/2020"
"Wolverhampton City Council","http://opendatacommunities.org/id/metropolitan-district-council/wolverhampton","WP-CENTRAL TAXIS L",14.5,"LAC Transitions Team","4121","Client Transport","12/06/2020"
"Wolverhampton City Council","http://opendatacommunities.org/id/metropolitan-district-council/wolverhampton","A2BGo Carz",30.5,"LAC Transitions Team","4121","Client Transport","12/06/2020"
"Wolverhampton City Council","http://opendatacommunities.org/id/metropolitan-district-council/wolverhampton","A2BGo Carz",30.3,"LAC Transitions Team","4121","Client Transport","12/06/2020"
"Wolverhampton City Council","http://opendatacommunities.org/id/metropolitan-district-council/wolverhampton","WWW.POSTOFFICESHOP.CO.",79.98,"Youth Offending Team","5111","Comms - Postage","12/06/2020"
"Wolverhampton City Council","http://opendatacommunities.org/id/metropolitan-district-council/wolverhampton","AMZNMKTPLACE AMAZON.CO",3.42,"EIP Locality 7","5999","Educ Trips, Holidays, Outings, Activity","12/06/2020"
"Wolverhampton City Council","http://opendatacommunities.org/id/metropolitan-district-council/wolverhampton","AMZNMKTPLACE AMAZON.CO",4.92,"EIP Locality 7","5999","Educ Trips, Holidays, Outings, Activity","12/06/2020"
"Wolverhampton City Council","http://opendatacommunities.org/id/metropolitan-district-council/wolverhampton","AMZNMKTPLACE AMAZON.CO",4.99,"EIP Locality 7","5999","Educ Trips, Holidays, Outings, Activity","12/06/2020"
"Wolverhampton City Council","http://opendatacommunities.org/id/metropolitan-district-council/wolverhampton","AMZNMKTPLACE AMAZON.CO",2.74,"EIP Locality 7","5999","Educ Trips, Holidays, Outings, Activity","12/06/2020"
"Wolverhampton City Council","http://opendatacommunities.org/id/metropolitan-district-council/wolverhampton","AMZNMKTPLACE AMAZON.CO",3.09,"EIP Locality 7","5999","Educ Trips, Holidays, Outings, Activity","12/06/2020"
"Wolverhampton City Council","http://opendatacommunities.org/id/metropolitan-district-council/wolverhampton","AMZNMKTPLACE AMAZON.CO",5.89,"EIP Locality 7","5999","Educ Trips, Holidays, Outings, Activity","12/06/2020"
"Wolverhampton City Council","http://opendatacommunities.org/id/metropolitan-district-council/wolverhampton","AMZNMKTPLACE AMAZON.CO",3.57,"EIP Locality 7","5999","Educ Trips, Holidays, Outings, Activity","12/06/2020"
"Wolverhampton City Council","http://opendatacommunities.org/id/metropolitan-district-council/wolverhampton","AMZNMKTPLACE AMAZON.CO",8.32,"EIP Locality 7","5999","Educ Trips, Holidays, Outings, Activity","12/06/2020"
"Wolverhampton City Council","http://opendatacommunities.org/id/metropolitan-district-council/wolverhampton","AMZNMKTPLACE AMAZON.CO",1.57,"EIP Locality 7","5999","Educ Trips, Holidays, Outings, Activity","12/06/2020"
"Wolverhampton City Council","http://opendatacommunities.org/id/metropolitan-district-council/wolverhampton","AMZNMKTPLACE AMAZON.CO",29,"EIP Locality 7","5999","Educ Trips, Holidays, Outings, Activity","12/06/2020"
"Wolverhampton City Council","http://opendatacommunities.org/id/metropolitan-district-council/wolverhampton","AMZNMKTPLACE AMAZON.CO",3.32,"EIP Locality 7","5999","Educ Trips, Holidays, Outings, Activity","12/06/2020"
"Wolverhampton City Council","http://opendatacommunities.org/id/metropolitan-district-council/wolverhampton","Piktochart Sdn Bhd",27.18,"Assistant Director - Public Health","5817","Subscriptions","12/06/2020"
"Wolverhampton City Council","http://opendatacommunities.org/id/metropolitan-district-council/wolverhampton","AMZNMktplace",2.42,"Central Costs","5999","-","12/06/2020"
"Wolverhampton City Council","http://opendatacommunities.org/id/metropolitan-district-council/wolverhampton","ARGOS LTD",359.98,"LAC Transitions Team","5310","-","12/06/2020"
"Wolverhampton City Council","http://opendatacommunities.org/id/metropolitan-district-council/wolverhampton","HOME & MOTORSAVE (PERT",3.32,"Independant Living Services","5039","Equipment - R & M","12/06/2020"
"Wolverhampton City Council","http://opendatacommunities.org/id/metropolitan-district-council/wolverhampton","WWW.WOLVERHAMPTON.GOV.",452.85,"LAC Transitions Team","9399","-","12/06/2020"
"Wolverhampton City Council","http://opendatacommunities.org/id/metropolitan-district-council/wolverhampton","WWW.WOLVERHAMPTON.GOV.",500,"LAC Transitions Team","9399","-","12/06/2020"
"Wolverhampton City Council","http://opendatacommunities.org/id/metropolitan-district-council/wolverhampton","WWW.WOLVERHAMPTON.GOV.",99.89,"LAC Transitions Team","9399","-","12/06/2020"
"Wolverhampton City Council","http://opendatacommunities.org/id/metropolitan-district-council/wolverhampton","WWW.WOLVERHAMPTON.GOV.",48,"LAC Transitions Team","9399","-","12/06/2020"
"Wolverhampton City Council","http://opendatacommunities.org/id/metropolitan-district-council/wolverhampton","BIGDUG LIMITED",170,"COVID 19 - Waste Service","5072","Equipment - Purchase","12/06/2020"
"Wolverhampton City Council","http://opendatacommunities.org/id/metropolitan-district-council/wolverhampton","POST OFFICE COUNTER",65,"Macmillan Welfare Rights","9402","Comms - Postage","11/06/2020"
"Wolverhampton City Council","http://opendatacommunities.org/id/metropolitan-district-council/wolverhampton","GOOGLE  ADS9680351324",500,"Communications & Marketing - General","5818","R4317","11/06/2020"
"Wolverhampton City Council","http://opendatacommunities.org/id/metropolitan-district-council/wolverhampton","ROYAL BK OF SCOTLAND",80,"LAC Transitions Team","6011","Client Allowances","11/06/2020"
"Wolverhampton City Council","http://opendatacommunities.org/id/metropolitan-district-council/wolverhampton","AMZNMktplace",51.99,"ALV - Darts & Comedy","5999","-","11/06/2020"
"Wolverhampton City Council","http://opendatacommunities.org/id/metropolitan-district-council/wolverhampton","BRAKE BROS LTD",1081,"ALV - Darts & Comedy","5811","-","11/06/2020"
"Wolverhampton City Council","http://opendatacommunities.org/id/metropolitan-district-council/wolverhampton","AMZNMKTPLACE AMAZON.CO",99.9,"ALV - Darts & Comedy","5999","-","11/06/2020"
"Wolverhampton City Council","http://opendatacommunities.org/id/metropolitan-district-council/wolverhampton","Allpay  ACCORD HOUSING",19.26,"LAC Transitions Team","8398","-","11/06/2020"
"Wolverhampton City Council","http://opendatacommunities.org/id/metropolitan-district-council/wolverhampton","Amazon.co.uk AV8H80S05",49.99,"LAC Transitions Team","5969","-","11/06/2020"
"Wolverhampton City Council","http://opendatacommunities.org/id/metropolitan-district-council/wolverhampton","PO OLD HILL 0676",50,"LAC Transitions Team","6011","Client Allowances","11/06/2020"
"Wolverhampton City Council","http://opendatacommunities.org/id/metropolitan-district-council/wolverhampton","RESPONSTER PLUS PLAN",15.39,"City Direct","5734","Computing - Purchase of Software","11/06/2020"
"Wolverhampton City Council","http://opendatacommunities.org/id/metropolitan-district-council/wolverhampton","AMZNMKTPLACE AMAZON.CO",5.2,"EIP Locality 7","5999","Educ Trips, Holidays, Outings, Activity","11/06/2020"
"Wolverhampton City Council","http://opendatacommunities.org/id/metropolitan-district-council/wolverhampton","ARGOS LTD",99.99,"Upper Pendeford Farm Childrens Home","5310","Equipment - Purchase","11/06/2020"
"Wolverhampton City Council","http://opendatacommunities.org/id/metropolitan-district-council/wolverhampton","NATECLA",50,"AES Staff Development","8699","Training Expenses","11/06/2020"
"Wolverhampton City Council","http://opendatacommunities.org/id/metropolitan-district-council/wolverhampton","CO-OPERATIVE FOOD",7.5,"Art Gallery","5411","-","11/06/2020"
"Wolverhampton City Council","http://opendatacommunities.org/id/metropolitan-district-council/wolverhampton","TIPPERS WOLVERHAMPTON",483.36,"Patching","5072","Materials","11/06/2020"
"Wolverhampton City Council","http://opendatacommunities.org/id/metropolitan-district-council/wolverhampton","LOYD 37 CHURCH STREET",200,"Duke Street Bungalows","6011","Provisions (Not for resale)","11/06/2020"
"Wolverhampton City Council","http://opendatacommunities.org/id/metropolitan-district-council/wolverhampton","TFM FARM   COUNTRY",83.9,"Northicote Farm","0763","Materials","11/06/2020"
"Wolverhampton City Council","http://opendatacommunities.org/id/metropolitan-district-council/wolverhampton","PAYPAL  TOOLSTATION",39.52,"Northicote Farm","5251","Materials","11/06/2020"
"Wolverhampton City Council","http://opendatacommunities.org/id/metropolitan-district-council/wolverhampton","Kindle Svcs PP68A8ZO5",0.99,"Key to Inspiration","5735","-","10/06/2020"
"Wolverhampton City Council","http://opendatacommunities.org/id/metropolitan-district-council/wolverhampton","DIXONS FAMILY BUTCHERS",65,"Bradley Resource Centre","5499","Provisions (Not for resale)","10/06/2020"
"Wolverhampton City Council","http://opendatacommunities.org/id/metropolitan-district-council/wolverhampton","ASDA STORE 4753",20.98,"Bradley Resource Centre","5411","Provisions (Not for resale)","10/06/2020"
"Wolverhampton City Council","http://opendatacommunities.org/id/metropolitan-district-council/wolverhampton","AMZNMktplace",199.99,"LAC Transitions Team","5999","Independant Living Allowance","10/06/2020"
"Wolverhampton City Council","http://opendatacommunities.org/id/metropolitan-district-council/wolverhampton","WWW.CORAM.ORG.UK",226.8,"Regional Adoption Agency","8398","Training Expenses","10/06/2020"
"Wolverhampton City Council","http://opendatacommunities.org/id/metropolitan-district-council/wolverhampton","HOME BARGAINS WOLVERHA",42.89,"Ernest Bold Court","5251","Equipment - Purchase","10/06/2020"
"Wolverhampton City Council","http://opendatacommunities.org/id/metropolitan-district-council/wolverhampton","ROBERT DYAS HOLDNG LTD",-159.99,"LAC Transitions Team","5251","-","10/06/2020"
"Wolverhampton City Council","http://opendatacommunities.org/id/metropolitan-district-council/wolverhampton","AMZNMKTPLACE AMAZON.CO",9.99,"EIP Locality 1","5999","Equipment - Purchase","10/06/2020"
"Wolverhampton City Council","http://opendatacommunities.org/id/metropolitan-district-council/wolverhampton","AMZNMktplace",6.66,"LAC Transitions Team","5999","-","10/06/2020"
"Wolverhampton City Council","http://opendatacommunities.org/id/metropolitan-district-council/wolverhampton","Trainline",66.5,"CIN/CP Social Work Unit - Area 5","4112","Client Transport","10/06/2020"
"Wolverhampton City Council","http://opendatacommunities.org/id/metropolitan-district-council/wolverhampton","ARGOS LTD",114.96,"LAC Transitions Team","5310","Client Allowances","10/06/2020"
"Wolverhampton City Council","http://opendatacommunities.org/id/metropolitan-district-council/wolverhampton","BCC REGISTER OFFIC",14.5,"CIN/CP Social Work Unit - Area 4","9399","Section 17","10/06/2020"
"Wolverhampton City Council","http://opendatacommunities.org/id/metropolitan-district-council/wolverhampton","GEN REGISTER OFFICE",14,"CIN/CP Social Work Unit - Area 4","9399","Section 17","10/06/2020"
"Wolverhampton City Council","http://opendatacommunities.org/id/metropolitan-district-council/wolverhampton","AMEY LG LIMITED",271.83,"Parks - Ranger Service","5211","R&M - Departmental planned (external)","10/06/2020"
"Wolverhampton City Council","http://opendatacommunities.org/id/metropolitan-district-council/wolverhampton","APPLE.COM/UK",10,"Members Expenses","5732","Equipment - Purchase","10/06/2020"
"Wolverhampton City Council","http://opendatacommunities.org/id/metropolitan-district-council/wolverhampton","APPLE.COM/UK",10,"Members Expenses","5732","Equipment - Purchase","10/06/2020"
"Wolverhampton City Council","http://opendatacommunities.org/id/metropolitan-district-council/wolverhampton","ROYAL MAIL",228,"Inclusion Support","9402","Comms - Postage","09/06/2020"
"Wolverhampton City Council","http://opendatacommunities.org/id/metropolitan-district-council/wolverhampton","ROYAL MAIL",152,"Inclusion Support","9402","Comms - Postage","09/06/2020"
"Wolverhampton City Council","http://opendatacommunities.org/id/metropolitan-district-council/wolverhampton","WWW.ICO.ORG.UK",2900,"Information Governance Team","9399","Subscriptions","09/06/2020"
"Wolverhampton City Council","http://opendatacommunities.org/id/metropolitan-district-council/wolverhampton","CARVER/WOLVERHAMPTON/L",33.55,"Northicote Farm","5211","Materials","09/06/2020"
"Wolverhampton City Council","http://opendatacommunities.org/id/metropolitan-district-council/wolverhampton","NAMESCO",34.99,"Communications & Marketing - General","4816","R4317","09/06/2020"
"Wolverhampton City Council","http://opendatacommunities.org/id/metropolitan-district-council/wolverhampton","WM MORRISONS STORE",68.05,"Bradley Resource Centre","5411","Provisions (Not for resale)","09/06/2020"
"Wolverhampton City Council","http://opendatacommunities.org/id/metropolitan-district-council/wolverhampton","B&M RETAIL",50.07,"LAC Transitions Team","5310","Client Allowances","09/06/2020"
"Wolverhampton City Council","http://opendatacommunities.org/id/metropolitan-district-council/wolverhampton","SEVERN TRENT WATER",59.18,"LAC Transitions Team","4900","-","09/06/2020"
"Wolverhampton City Council","http://opendatacommunities.org/id/metropolitan-district-council/wolverhampton","WWW.VOUCHEREXPRESS.CO.",245.75,"Youth Offending Team","5947","Provisions (Not for resale)","09/06/2020"
"Wolverhampton City Council","http://opendatacommunities.org/id/metropolitan-district-council/wolverhampton","APPLE.COM/BILL",0.79,"Managing Director","5735","Computing - Purchase of Software","09/06/2020"
"Wolverhampton City Council","http://opendatacommunities.org/id/metropolitan-district-council/wolverhampton","CARVER/WOLVERHAMPTON/L",49.8,"Cleaning of Buildings - General","5211","Equipment - R & M","09/06/2020"
"Wolverhampton City Council","http://opendatacommunities.org/id/metropolitan-district-council/wolverhampton","CARVER/WOLVERHAMPTON/L",15.61,"Cleaning of Buildings - General","5211","Equipment - R & M","09/06/2020"
"Wolverhampton City Council","http://opendatacommunities.org/id/metropolitan-district-council/wolverhampton","AMZNMKTPLACE AMAZON.CO",2.99,"EIP Locality 1","5999","Equipment - Purchase","09/06/2020"
"Wolverhampton City Council","http://opendatacommunities.org/id/metropolitan-district-council/wolverhampton","INPRINT LITHO LIMITED",141,"Technical Support","2741","Materials","09/06/2020"
"Wolverhampton City Council","http://opendatacommunities.org/id/metropolitan-district-council/wolverhampton","INPRINT LITHO LIMITED",185,"Technical Support","2741","Materials","09/06/2020"
"Wolverhampton City Council","http://opendatacommunities.org/id/metropolitan-district-council/wolverhampton","TESCO ONLINE",45,"CIN/CP Social Work Unit - Area 4","5999","Section 17","09/06/2020"
"Wolverhampton City Council","http://opendatacommunities.org/id/metropolitan-district-council/wolverhampton","Amazon.co.uk Z64OI3A05",41.4,"School Crossing Patrol","5969","Equipment - Purchase","09/06/2020"
"Wolverhampton City Council","http://opendatacommunities.org/id/metropolitan-district-council/wolverhampton","DVLA VEHICLE TAX",167.5,"Education Lawnswood Campus","9311","R3004","09/06/2020"
"Wolverhampton City Council","http://opendatacommunities.org/id/metropolitan-district-council/wolverhampton","WM MORRISONS STORE",15.33,"Ernest Bold Court","5411","Provisions (Not for resale)","09/06/2020"
"Wolverhampton City Council","http://opendatacommunities.org/id/metropolitan-district-council/wolverhampton","Amazon.co.uk PY54C3QR5",4,"Citizenship, Language & Learning","5969","Books","08/06/2020"
"Wolverhampton City Council","http://opendatacommunities.org/id/metropolitan-district-council/wolverhampton","M&C RESRVTION SVCS LTD",223.33,"Regional Adoption Agency","7011","Accommodation Costs","08/06/2020"
"Wolverhampton City Council","http://opendatacommunities.org/id/metropolitan-district-council/wolverhampton","M&C RESRVTION SVCS LTD",325,"Regional Adoption Agency","7011","Accommodation Costs","08/06/2020"
"Wolverhampton City Council","http://opendatacommunities.org/id/metropolitan-district-council/wolverhampton","Amazon.co.uk 4I9200QH5",4,"Youth Offending Team","5969","Hospitality","08/06/2020"
"Wolverhampton City Council","http://opendatacommunities.org/id/metropolitan-district-council/wolverhampton","Amazon.co.uk F188B5MZ5",4,"Youth Offending Team","5969","Hospitality","08/06/2020"
"Wolverhampton City Council","http://opendatacommunities.org/id/metropolitan-district-council/wolverhampton","Amazon.co.uk D23EP9VC5",4,"Youth Offending Team","5969","Hospitality","08/06/2020"
"Wolverhampton City Council","http://opendatacommunities.org/id/metropolitan-district-council/wolverhampton","Amazon.co.uk 966MJ4H75",4,"Youth Offending Team","5969","Hospitality","08/06/2020"
"Wolverhampton City Council","http://opendatacommunities.org/id/metropolitan-district-council/wolverhampton","Amazon.co.uk SA9I57HU5",4,"Youth Offending Team","5969","Hospitality","08/06/2020"
"Wolverhampton City Council","http://opendatacommunities.org/id/metropolitan-district-council/wolverhampton","Amazon.co.uk RM31J5R95",4,"Youth Offending Team","5969","Hospitality","08/06/2020"
"Wolverhampton City Council","http://opendatacommunities.org/id/metropolitan-district-council/wolverhampton","Amazon.co.uk QO8NO9VQ5",4,"Youth Offending Team","5969","Hospitality","08/06/2020"
"Wolverhampton City Council","http://opendatacommunities.org/id/metropolitan-district-council/wolverhampton","Amazon.co.uk FR5I47NM5",4,"Youth Offending Team","5969","Hospitality","08/06/2020"
"Wolverhampton City Council","http://opendatacommunities.org/id/metropolitan-district-council/wolverhampton","Amazon.co.uk ES2C56ZB5",4,"Youth Offending Team","5969","Hospitality","08/06/2020"
"Wolverhampton City Council","http://opendatacommunities.org/id/metropolitan-district-council/wolverhampton","Amazon.co.uk CC2I380X5",4,"Youth Offending Team","5969","Hospitality","08/06/2020"
"Wolverhampton City Council","http://opendatacommunities.org/id/metropolitan-district-council/wolverhampton","AMZNMktplace",6.52,"Youth Offending Team","5999","Hospitality","08/06/2020"
"Wolverhampton City Council","http://opendatacommunities.org/id/metropolitan-district-council/wolverhampton","Amazon.co.uk XL0BY5YS5",4,"Youth Offending Team","5969","Hospitality","08/06/2020"
"Wolverhampton City Council","http://opendatacommunities.org/id/metropolitan-district-council/wolverhampton","Amazon.co.uk K20S78A65",4,"Youth Offending Team","5969","Hospitality","08/06/2020"
"Wolverhampton City Council","http://opendatacommunities.org/id/metropolitan-district-council/wolverhampton","Amazon.co.uk SH3TZ4GP5",4,"Youth Offending Team","5969","Hospitality","08/06/2020"
"Wolverhampton City Council","http://opendatacommunities.org/id/metropolitan-district-council/wolverhampton","AMZNMktplace",91.87,"Wolverhampton Indoor and Open Market","5999","R4007","08/06/2020"
"Wolverhampton City Council","http://opendatacommunities.org/id/metropolitan-district-council/wolverhampton","AMZNMktplace",33.59,"Wolverhampton Indoor and Open Market","5999","R4007","08/06/2020"
"Wolverhampton City Council","http://opendatacommunities.org/id/metropolitan-district-council/wolverhampton","AMZNMktplace",69.96,"Wolverhampton Indoor and Open Market","5999","First Aid Requisites","08/06/2020"
"Wolverhampton City Council","http://opendatacommunities.org/id/metropolitan-district-council/wolverhampton","WILKO RETAIL LIMITED",33.33,"CIN/CP Social Work Unit - Area 1","5399","Section 17","08/06/2020"
"Wolverhampton City Council","http://opendatacommunities.org/id/metropolitan-district-council/wolverhampton","TOTAL PRODUCE",21,"Cleaning of Buildings - General","5499","Equipment - R & M","08/06/2020"
"Wolverhampton City Council","http://opendatacommunities.org/id/metropolitan-district-council/wolverhampton","VIRGIN MEDIA PYMTS",9,"Learning Disabilities Management","4814","-","08/06/2020"
"Wolverhampton City Council","http://opendatacommunities.org/id/metropolitan-district-council/wolverhampton","AMZNMktplace",101.47,"Food and Health & Safety","5999","Equipment - Purchase","08/06/2020"
"Wolverhampton City Council","http://opendatacommunities.org/id/metropolitan-district-council/wolverhampton","AMZNMKTPLACE AMAZON.CO",19.16,"Inclusion Support","5999","Computing - Consumables","08/06/2020"
"Wolverhampton City Council","http://opendatacommunities.org/id/metropolitan-district-council/wolverhampton","POST OFFICE COUNTER",6.7,"Fleet Management","9402","Comms - Postage","08/06/2020"
"Wolverhampton City Council","http://opendatacommunities.org/id/metropolitan-district-council/wolverhampton","POST OFFICE COUNTER",6.7,"Fleet Management","9402","Comms - Postage","08/06/2020"
"Wolverhampton City Council","http://opendatacommunities.org/id/metropolitan-district-council/wolverhampton","Amazon.co.uk X622Y5B75",22.48,"Northicote Farm","5969","Equipment - Purchase","08/06/2020"
"Wolverhampton City Council","http://opendatacommunities.org/id/metropolitan-district-council/wolverhampton","WWW.THEWORKS.CO.UK",19.99,"Power2 Team","5310","Direct Work With Children","08/06/2020"
"Wolverhampton City Council","http://opendatacommunities.org/id/metropolitan-district-council/wolverhampton","APPLE.COM/UK",79,"WV Active Marketing","5732","R4317","08/06/2020"
"Wolverhampton City Council","http://opendatacommunities.org/id/metropolitan-district-council/wolverhampton","Just Eat",13,"Key to Inspiration","5814","-","08/06/2020"
"Wolverhampton City Council","http://opendatacommunities.org/id/metropolitan-district-council/wolverhampton","Just Eat",13.9,"Key to Inspiration","5814","-","08/06/2020"
"Wolverhampton City Council","http://opendatacommunities.org/id/metropolitan-district-council/wolverhampton","Just Eat",12.45,"Key to Inspiration","5814","-","08/06/2020"
"Wolverhampton City Council","http://opendatacommunities.org/id/metropolitan-district-council/wolverhampton","WWW.SUN-LEISURE.COM",3491.25,"COVID 19 - Food Distribution Hub","5261","Equipment - Health and Safety","08/06/2020"
"Wolverhampton City Council","http://opendatacommunities.org/id/metropolitan-district-council/wolverhampton","WHOLESALE SERVICES",26.99,"ALV - Darts & Comedy","7399","-","08/06/2020"
"Wolverhampton City Council","http://opendatacommunities.org/id/metropolitan-district-council/wolverhampton","WM MORRISONS STORE",86.51,"Bradley Resource Centre","5411","Provisions (Not for resale)","08/06/2020"
"Wolverhampton City Council","http://opendatacommunities.org/id/metropolitan-district-council/wolverhampton","123 REG LTD",1390.86,"Strategic ICTS (ICT Serv Budget)","5968","-","05/06/2020"
"Wolverhampton City Council","http://opendatacommunities.org/id/metropolitan-district-council/wolverhampton","SMARTSURVEY",360,"WV Active Marketing","8999","R4317","05/06/2020"
"Wolverhampton City Council","http://opendatacommunities.org/id/metropolitan-district-council/wolverhampton","WM MORRISONS STORE",99.08,"Bradley Resource Centre","5411","Provisions (Not for resale)","05/06/2020"
"Wolverhampton City Council","http://opendatacommunities.org/id/metropolitan-district-council/wolverhampton","WWW.JA.NET",84,"Communications & Marketing - General","8699","Subscriptions","05/06/2020"
"Wolverhampton City Council","http://opendatacommunities.org/id/metropolitan-district-council/wolverhampton","WWW.JA.NET",100.8,"Strategic ICTS (ICT Serv Budget)","8699","-","05/06/2020"
"Wolverhampton City Council","http://opendatacommunities.org/id/metropolitan-district-council/wolverhampton","S CRAFT",222,"Technician","5734","-","05/06/2020"
"Wolverhampton City Council","http://opendatacommunities.org/id/metropolitan-district-council/wolverhampton","ICELAND",85.67,"Key to Inspiration","5411","Provisions (Not for resale)","05/06/2020"
"Wolverhampton City Council","http://opendatacommunities.org/id/metropolitan-district-council/wolverhampton","ICELAND",128.63,"Key to Inspiration","5411","Provisions (Not for resale)","05/06/2020"
"Wolverhampton City Council","http://opendatacommunities.org/id/metropolitan-district-council/wolverhampton","ASDA SUPERSTORE",170.87,"Key to Inspiration","5411","Provisions (Not for resale)","05/06/2020"
"Wolverhampton City Council","http://opendatacommunities.org/id/metropolitan-district-council/wolverhampton","PO OLD HILL 0676",62.5,"LAC Transitions Team","6011","Client Allowances","05/06/2020"
"Wolverhampton City Council","http://opendatacommunities.org/id/metropolitan-district-council/wolverhampton","Amazon.co.uk YQ1HJ23Q5",4,"Youth Offending Team","5969","Hospitality","05/06/2020"
"Wolverhampton City Council","http://opendatacommunities.org/id/metropolitan-district-council/wolverhampton","ACYMAILING SUBSCRIPTIO",62.13,"ICT Services","5734","Subscriptions","05/06/2020"
"Wolverhampton City Council","http://opendatacommunities.org/id/metropolitan-district-council/wolverhampton","WWW.WOLVERHAMPTON.GOV.",73.77,"LAC Transitions Accommodation","9399","Client Allowances","05/06/2020"
"Wolverhampton City Council","http://opendatacommunities.org/id/metropolitan-district-council/wolverhampton","WM MORRISONS STORE",3,"Ernest Bold Court","5411","Provisions (Not for resale)","05/06/2020"
"Wolverhampton City Council","http://opendatacommunities.org/id/metropolitan-district-council/wolverhampton","CUMMINGS BROTHERS LOCK",15,"Cleaning of Buildings - General","7399","Equipment - R & M","05/06/2020"
"Wolverhampton City Council","http://opendatacommunities.org/id/metropolitan-district-council/wolverhampton","AMZNMKTPLACE AMAZON.CO",47.88,"Duke Street Bungalows","5999","Equipment - Purchase","05/06/2020"
"Wolverhampton City Council","http://opendatacommunities.org/id/metropolitan-district-council/wolverhampton","Amazon.co.uk 9O1Z42ZS5",12.5,"Parks - Ranger Service","5969","Cleaning Supplies and Materials","04/06/2020"
"Wolverhampton City Council","http://opendatacommunities.org/id/metropolitan-district-council/wolverhampton","Amazon.co.uk RI57C5GG5",12.5,"Parks - Ranger Service","5969","Cleaning Supplies and Materials","04/06/2020"
"Wolverhampton City Council","http://opendatacommunities.org/id/metropolitan-district-council/wolverhampton","Amazon.co.uk MK6AB3Z35",12.5,"Parks - Ranger Service","5969","Cleaning Supplies and Materials","04/06/2020"
"Wolverhampton City Council","http://opendatacommunities.org/id/metropolitan-district-council/wolverhampton","AMZNMktplace",62.21,"Parks - Ranger Service","5999","Equipment - Purchase","04/06/2020"
"Wolverhampton City Council","http://opendatacommunities.org/id/metropolitan-district-council/wolverhampton","SAFETYSUPPL",-295.74,"MI Friendly Cities","5311","Equipment - Health and Safety","04/06/2020"
"Wolverhampton City Council","http://opendatacommunities.org/id/metropolitan-district-council/wolverhampton","CardtronicsUK",100,"Power2 Team","6011","Direct Work With Children","04/06/2020"
"Wolverhampton City Council","http://opendatacommunities.org/id/metropolitan-district-council/wolverhampton","CardtronicsUK",250,"Power2 Team","6011","Direct Work With Children","04/06/2020"
"Wolverhampton City Council","http://opendatacommunities.org/id/metropolitan-district-council/wolverhampton","HM PASSPORT OFFICE",58.5,"Lac Transitions","9399","Services - Supplies & Services to users","04/06/2020"
"Wolverhampton City Council","http://opendatacommunities.org/id/metropolitan-district-council/wolverhampton","WWW.SECURE-PAYMENT-SER",4.17,"LAC Transitions Team","7372","Client Allowances","04/06/2020"
"Wolverhampton City Council","http://opendatacommunities.org/id/metropolitan-district-council/wolverhampton","SP   OIL SPILL PRODUCT",64,"Technician","5691","Materials","04/06/2020"
"Wolverhampton City Council","http://opendatacommunities.org/id/metropolitan-district-council/wolverhampton","AMZNMKTPLACE AMAZON.CO",56,"Hospital Team","5999","Materials","04/06/2020"
"Wolverhampton City Council","http://opendatacommunities.org/id/metropolitan-district-council/wolverhampton","SMARTSURVEY",432,"Bert Williams Leisure Centre","8999","-","04/06/2020"
"Wolverhampton City Council","http://opendatacommunities.org/id/metropolitan-district-council/wolverhampton","ROYAL BK OF SCOTLAND",70,"LAC Transitions Team","6011","Provisions (Not for resale)","04/06/2020"
"Wolverhampton City Council","http://opendatacommunities.org/id/metropolitan-district-council/wolverhampton","WWW.VOUCHEREXPRESS.CO.",245.75,"Youth Offending Team","5947","Provisions (Not for resale)","04/06/2020"
"Wolverhampton City Council","http://opendatacommunities.org/id/metropolitan-district-council/wolverhampton","ARGOS LTD",99.99,"Upper Pendeford Farm Childrens Home","5310","Equipment - Purchase","04/06/2020"
"Wolverhampton City Council","http://opendatacommunities.org/id/metropolitan-district-council/wolverhampton","ARGOS LTD",253.94,"Upper Pendeford Farm Childrens Home","5310","Equipment - Purchase","04/06/2020"
"Wolverhampton City Council","http://opendatacommunities.org/id/metropolitan-district-council/wolverhampton","ARGOS LTD",352.95,"Upper Pendeford Farm Childrens Home","5310","Equipment - Purchase","04/06/2020"
"Wolverhampton City Council","http://opendatacommunities.org/id/metropolitan-district-council/wolverhampton","ASDA STORE",6,"LAC Transitions Team","5411","Client Allowances","04/06/2020"
"Wolverhampton City Council","http://opendatacommunities.org/id/metropolitan-district-council/wolverhampton","AMZNMKTPLACE AMAZON.CO",4.78,"Duke Street Bungalows","5999","R4010","04/06/2020"
"Wolverhampton City Council","http://opendatacommunities.org/id/metropolitan-district-council/wolverhampton","ROOKERY Sainsburys Ba",200,"Duke Street Bungalows","6011","Provisions (Not for resale)","04/06/2020"
"Wolverhampton City Council","http://opendatacommunities.org/id/metropolitan-district-council/wolverhampton","CARESHOP",132.9,"Ernest Bold Court","5999","Materials","04/06/2020"
"Wolverhampton City Council","http://opendatacommunities.org/id/metropolitan-district-council/wolverhampton","PAYPAL  EUROCARPART",131.2,"Fleet Management","5533","Equipment - Purchase","04/06/2020"
"Wolverhampton City Council","http://opendatacommunities.org/id/metropolitan-district-council/wolverhampton","AMZNMktplace",35.78,"Fleet Management","5999","Equipment - Purchase","04/06/2020"
"Wolverhampton City Council","http://opendatacommunities.org/id/metropolitan-district-council/wolverhampton","KONICA MINOLTA BUSINES",96.01,"Music Support Team","7399","Equipment - R & M","04/06/2020"
"Wolverhampton City Council","http://opendatacommunities.org/id/metropolitan-district-council/wolverhampton","ARGOS LTD",129.99,"LAC Transitions Team","5310","Independant Living Allowance","03/06/2020"
"Wolverhampton City Council","http://opendatacommunities.org/id/metropolitan-district-council/wolverhampton","SAFETYSUPPL",246.45,"MI Friendly Cities","5311","Equipment - Health and Safety","03/06/2020"
"Wolverhampton City Council","http://opendatacommunities.org/id/metropolitan-district-council/wolverhampton","SAFETYSUPPL",295.74,"MI Friendly Cities","5311","Equipment - Health and Safety","03/06/2020"
"Wolverhampton City Council","http://opendatacommunities.org/id/metropolitan-district-council/wolverhampton","AMZNMktplace",32.46,"MI Friendly Cities","5999","Equipment - Health and Safety","03/06/2020"
"Wolverhampton City Council","http://opendatacommunities.org/id/metropolitan-district-council/wolverhampton","AMZNMktplace",21.64,"MI Friendly Cities","5999","Equipment - Health and Safety","03/06/2020"
"Wolverhampton City Council","http://opendatacommunities.org/id/metropolitan-district-council/wolverhampton","AMZNMKTPLACE AMAZON.CO",32.47,"Power2 Team","5999","Direct Work With Children","03/06/2020"
"Wolverhampton City Council","http://opendatacommunities.org/id/metropolitan-district-council/wolverhampton","KD EVENTS AND PUBLISHI",100,"Audience Development","2741","Marketing \ Non-staff advertising","03/06/2020"
"Wolverhampton City Council","http://opendatacommunities.org/id/metropolitan-district-council/wolverhampton","WM MORRISONS STORE",51.25,"ALV - Darts & Comedy","5411","-","03/06/2020"
"Wolverhampton City Council","http://opendatacommunities.org/id/metropolitan-district-council/wolverhampton","WM MORRISONS STORE",4,"ALV - Darts & Comedy","5411","-","03/06/2020"
"Wolverhampton City Council","http://opendatacommunities.org/id/metropolitan-district-council/wolverhampton","WM MORRISONS STORE",124.17,"Bradley Resource Centre","5411","Provisions (Not for resale)","03/06/2020"
"Wolverhampton City Council","http://opendatacommunities.org/id/metropolitan-district-council/wolverhampton","WWW.MERCURYSAFETY.COM",45.71,"Collections & Conservation","5047","R4007","03/06/2020"
"Wolverhampton City Council","http://opendatacommunities.org/id/metropolitan-district-council/wolverhampton","KINGFISHERDIRECT",48.68,"Collections & Conservation","5046","R4007","03/06/2020"
"Wolverhampton City Council","http://opendatacommunities.org/id/metropolitan-district-council/wolverhampton","SP   EMPTEEZY LTD",18,"Collections & Conservation","5734","R4007","03/06/2020"
"Wolverhampton City Council","http://opendatacommunities.org/id/metropolitan-district-council/wolverhampton","SP   OIL SPILL PRODUCT",22,"Collections & Conservation","5691","R4007","03/06/2020"
"Wolverhampton City Council","http://opendatacommunities.org/id/metropolitan-district-council/wolverhampton","ARGOS LTD",51.62,"LAC Transitions Team","5310","Independant Living Allowance","03/06/2020"
"Wolverhampton City Council","http://opendatacommunities.org/id/metropolitan-district-council/wolverhampton","SAINSBURYS 2040",19.58,"Duke Street Bungalows","5411","R4010","03/06/2020"
"Wolverhampton City Council","http://opendatacommunities.org/id/metropolitan-district-council/wolverhampton","B&M 333 - AN BENTLEY B",8.33,"Duke Street Bungalows","5399","R4010","03/06/2020"
"Wolverhampton City Council","http://opendatacommunities.org/id/metropolitan-district-council/wolverhampton","TFM FARM   COUNTRY",12.48,"Northicote Farm","0763","Provisions (Not for resale)","03/06/2020"
"Wolverhampton City Council","http://opendatacommunities.org/id/metropolitan-district-council/wolverhampton","ARGOS LTD",61.95,"LAC Transitions Team","5310","Client Allowances","03/06/2020"
"Wolverhampton City Council","http://opendatacommunities.org/id/metropolitan-district-council/wolverhampton","ASDA SUPERSTORE",32,"LAC Transitions Team","5411","Client Allowances","03/06/2020"
"Wolverhampton City Council","http://opendatacommunities.org/id/metropolitan-district-council/wolverhampton","AMZNMktplace",4.9,"Wolverhampton Indoor and Open Market","5999","R4007","03/06/2020"
"Wolverhampton City Council","http://opendatacommunities.org/id/metropolitan-district-council/wolverhampton","VIRGIN MEDIA PYMTS",7.5,"Community Enablement","4814","Comms - Telephone Call charges","03/06/2020"
"Wolverhampton City Council","http://opendatacommunities.org/id/metropolitan-district-council/wolverhampton","SAINSBURYS 2040",24,"Duke Street Bungalows","5411","R4010","03/06/2020"
"Wolverhampton City Council","http://opendatacommunities.org/id/metropolitan-district-council/wolverhampton","GEN REGISTER OFFICE",45.25,"Agresso System Support","9399","Services - Fees and Charges","03/06/2020"
"Wolverhampton City Council","http://opendatacommunities.org/id/metropolitan-district-council/wolverhampton","AMZNMktplace",58.32,"Parks - Ranger Service","5999","Equipment - Purchase","03/06/2020"
"Wolverhampton City Council","http://opendatacommunities.org/id/metropolitan-district-council/wolverhampton","Amazon.co.uk Q80ME9G15",8.92,"Parks - Ranger Service","5969","Cleaning Supplies and Materials","03/06/2020"
"Wolverhampton City Council","http://opendatacommunities.org/id/metropolitan-district-council/wolverhampton","Amazon.co.uk HK9N76H75",8.92,"Parks - Ranger Service","5969","Cleaning Supplies and Materials","03/06/2020"
"Wolverhampton City Council","http://opendatacommunities.org/id/metropolitan-district-council/wolverhampton","HOME BARGAINS",6.45,"Duke Street Bungalows","5251","R4010","03/06/2020"
"Wolverhampton City Council","http://opendatacommunities.org/id/metropolitan-district-council/wolverhampton","TECHBUYER LIMITED",75.84,"Strategic ICTS (ICT Serv Budget)","5045","-","02/06/2020"
"Wolverhampton City Council","http://opendatacommunities.org/id/metropolitan-district-council/wolverhampton","Amazon.co.uk TI9FO2BI5",20.24,"MI Friendly Cities","5969","Equipment - Health and Safety","02/06/2020"
"Wolverhampton City Council","http://opendatacommunities.org/id/metropolitan-district-council/wolverhampton","AMZNMktplace",8.24,"MI Friendly Cities","5999","Equipment - Health and Safety","02/06/2020"
"Wolverhampton City Council","http://opendatacommunities.org/id/metropolitan-district-council/wolverhampton","Trainline",74.94,"CIN/CP Social Work Unit - Area 5","4112","Section 17","02/06/2020"
"Wolverhampton City Council","http://opendatacommunities.org/id/metropolitan-district-council/wolverhampton","SAINSBURYS (2340)",16.92,"Safeguarding Admin Resource","5411","Comms - Postage","02/06/2020"
"Wolverhampton City Council","http://opendatacommunities.org/id/metropolitan-district-council/wolverhampton","SENSORY DIRECT",95.83,"Childrens with Disabilities Team","5945","-","02/06/2020"
"Wolverhampton City Council","http://opendatacommunities.org/id/metropolitan-district-council/wolverhampton","ROYAL BK OF SCOTLAND",41.67,"LAC Transitions Team","6011","Client Allowances","02/06/2020"
"Wolverhampton City Council","http://opendatacommunities.org/id/metropolitan-district-council/wolverhampton","ROYAL MAIL ONLINE SHOP",57.5,"Fostering Team & Allowances","9402","Comms - Postage","02/06/2020"
"Wolverhampton City Council","http://opendatacommunities.org/id/metropolitan-district-council/wolverhampton","ARGOS LTD",249.17,"LAC Transitions Team","5310","Client Allowances","02/06/2020"
"Wolverhampton City Council","http://opendatacommunities.org/id/metropolitan-district-council/wolverhampton","B&M RETAIL LTD",32.12,"LAC Transitions Team","5399","Client Allowances","02/06/2020"
"Wolverhampton City Council","http://opendatacommunities.org/id/metropolitan-district-council/wolverhampton","LOYD 162 SOHO ROAD",60,"LAC Transitions Team","6011","Client Allowances","02/06/2020"
"Wolverhampton City Council","http://opendatacommunities.org/id/metropolitan-district-council/wolverhampton","LOYD 89 CHURCH STREET",50,"Ernest Bold Court","6011","Provisions (Not for resale)","02/06/2020"
"Wolverhampton City Council","http://opendatacommunities.org/id/metropolitan-district-council/wolverhampton","Amazon.co.uk AG6MN6H15",45.24,"Wolverhampton Indoor and Open Market","5969","First Aid Requisites","02/06/2020"
"Wolverhampton City Council","http://opendatacommunities.org/id/metropolitan-district-council/wolverhampton","AMZNMktplace",59.8,"Wolverhampton Indoor and Open Market","5999","First Aid Requisites","02/06/2020"
"Wolverhampton City Council","http://opendatacommunities.org/id/metropolitan-district-council/wolverhampton","AMZNMktplace",3.07,"Wolverhampton Indoor and Open Market","5999","R4007","02/06/2020"
"Wolverhampton City Council","http://opendatacommunities.org/id/metropolitan-district-council/wolverhampton","AMZ ARA-GLOBAL",-29.97,"LAC Transitions Accommodation","5999","Accommodation Costs","02/06/2020"
"Wolverhampton City Council","http://opendatacommunities.org/id/metropolitan-district-council/wolverhampton","POST OFFICE COUNTER",12.76,"LAC Team","9402","Comms - Postage","02/06/2020"
"Wolverhampton City Council","http://opendatacommunities.org/id/metropolitan-district-council/wolverhampton","WIX.COM",93.13,"Technical Support","5968","-","02/06/2020"
"Wolverhampton City Council","http://opendatacommunities.org/id/metropolitan-district-council/wolverhampton","LOYD 70 HIGH STREET",50,"LAC Transitions Team","6011","Client Allowances","02/06/2020"
"Wolverhampton City Council","http://opendatacommunities.org/id/metropolitan-district-council/wolverhampton","AMZNMktplace",41.65,"Parks - Ranger Service","5999","Equipment - Purchase","02/06/2020"
"Wolverhampton City Council","http://opendatacommunities.org/id/metropolitan-district-council/wolverhampton","AMZNMktplace",8.31,"Parks - Ranger Service","5999","Equipment - Purchase","02/06/2020"
"Wolverhampton City Council","http://opendatacommunities.org/id/metropolitan-district-council/wolverhampton","Amazon.co.uk 6Y2ZF18O5",8.92,"Parks - Ranger Service","5969","Cleaning Supplies and Materials","02/06/2020"
"Wolverhampton City Council","http://opendatacommunities.org/id/metropolitan-district-council/wolverhampton","Amazon.co.uk ES4R91XU5",8.92,"Parks - Ranger Service","5969","Cleaning Supplies and Materials","02/06/2020"
"Wolverhampton City Council","http://opendatacommunities.org/id/metropolitan-district-council/wolverhampton","LOYD 37 CHURCH STREET",200,"Duke Street Bungalows","6011","Provisions (Not for resale)","02/06/2020"
"Wolverhampton City Council","http://opendatacommunities.org/id/metropolitan-district-council/wolverhampton","TFM FARM   COUNTRY",10.35,"Northicote Farm","0763","Provisions (Not for resale)","02/06/2020"
"Wolverhampton City Council","http://opendatacommunities.org/id/metropolitan-district-council/wolverhampton","TFM FARM   COUNTRY",15.38,"Northicote Farm","0763","Materials","02/06/2020"
"Wolverhampton City Council","http://opendatacommunities.org/id/metropolitan-district-council/wolverhampton","ARGOS LTD",45,"LAC Transitions Team","5310","Independant Living Allowance","01/06/2020"
"Wolverhampton City Council","http://opendatacommunities.org/id/metropolitan-district-council/wolverhampton","ARGOS LTD",261.94,"LAC Transitions Team","5310","Independant Living Allowance","01/06/2020"
"Wolverhampton City Council","http://opendatacommunities.org/id/metropolitan-district-council/wolverhampton","ARGOS LTD",39.97,"LAC Transitions Team","5310","Independant Living Allowance","01/06/2020"
"Wolverhampton City Council","http://opendatacommunities.org/id/metropolitan-district-council/wolverhampton","BARONS COURT HOTEL",83.33,"Mental Health Assessment & Care Mgmt","7011","Accommodation Costs","01/06/2020"
"Wolverhampton City Council","http://opendatacommunities.org/id/metropolitan-district-council/wolverhampton","FACEBK 3NLX9U2BR2",489.12,"Communications & Marketing - General","7311","R4317","01/06/2020"
"Wolverhampton City Council","http://opendatacommunities.org/id/metropolitan-district-council/wolverhampton","GOOGLE  ADS5477893156",184.34,"Communications & Marketing - General","7311","-","01/06/2020"
"Wolverhampton City Council","http://opendatacommunities.org/id/metropolitan-district-council/wolverhampton","Kindle Svcs PR79275A5",1.99,"Key to Inspiration","5735","-","01/06/2020"
"Wolverhampton City Council","http://opendatacommunities.org/id/metropolitan-district-council/wolverhampton","ASDA STORES 7134",5,"Key to Inspiration","5411","-","01/06/2020"
"Wolverhampton City Council","http://opendatacommunities.org/id/metropolitan-district-council/wolverhampton","WM MORRISONS STORE",90.77,"Bradley Resource Centre","5411","Provisions (Not for resale)","01/06/2020"
"Wolverhampton City Council","http://opendatacommunities.org/id/metropolitan-district-council/wolverhampton","CardtronicsUK",125,"LAC Transitions Team","6011","Client Allowances","01/06/2020"
"Wolverhampton City Council","http://opendatacommunities.org/id/metropolitan-district-council/wolverhampton","ICELAND",113.69,"Key to Inspiration","5411","Provisions (Not for resale)","01/06/2020"
"Wolverhampton City Council","http://opendatacommunities.org/id/metropolitan-district-council/wolverhampton","ICELAND",123.49,"Key to Inspiration","5411","Provisions (Not for resale)","01/06/2020"
"Wolverhampton City Council","http://opendatacommunities.org/id/metropolitan-district-council/wolverhampton","ASDA SUPERSTORE",182.41,"Key to Inspiration","5411","Provisions (Not for resale)","01/06/2020"
"Wolverhampton City Council","http://opendatacommunities.org/id/metropolitan-district-council/wolverhampton","ARGOS LTD",211.62,"LAC Transitions Team","5310","Independant Living Allowance","01/06/2020"
"Wolverhampton City Council","http://opendatacommunities.org/id/metropolitan-district-council/wolverhampton","ARGOS LTD",43.95,"Bradley Resource Centre","5310","Equipment - Purchase","01/06/2020"
"Wolverhampton City Council","http://opendatacommunities.org/id/metropolitan-district-council/wolverhampton","AMZNMKTPLACE AMAZON.CO",24.98,"Bradley Resource Centre","5999","Cleaning Supplies and Materials","01/06/2020"
"Wolverhampton City Council","http://opendatacommunities.org/id/metropolitan-district-council/wolverhampton","HUGHES TV AND AUDIO LT",275,"LAC Transitions Team","5732","Client Allowances","01/06/2020"
"Wolverhampton City Council","http://opendatacommunities.org/id/metropolitan-district-council/wolverhampton","POST OFFICE COUNTER",1.42,"Regional Adoption Agency","9402","-","01/06/2020"
"Wolverhampton City Council","http://opendatacommunities.org/id/metropolitan-district-council/wolverhampton","WM MORRISONS STORE",1.5,"Ernest Bold Court","5411","Provisions (Resale)","01/06/2020"
"Wolverhampton City Council","http://opendatacommunities.org/id/metropolitan-district-council/wolverhampton","PAYPAL  SHEDRITE",500,"Youth Offending Team","5261","Direct Work With Children","01/06/2020"
"Wolverhampton City Council","http://opendatacommunities.org/id/metropolitan-district-council/wolverhampton","NATWEST BANK",50,"Looked After Team 2","6011","Financial Assistance In Exceptional Circ","01/06/2020"
"Wolverhampton City Council","http://opendatacommunities.org/id/metropolitan-district-council/wolverhampton","WEX PHOTOGRAPHIC",83.32,"Business Support Services","5946","Computing - Purchase of Hardware","01/06/2020"
"Wolverhampton City Council","http://opendatacommunities.org/id/metropolitan-district-council/wolverhampton","PAYPAL  WWWSOTEL DE",127.82,"COVID 19 - Public Health","5732","Equipment - Health and Safety","01/06/2020"
"Wolverhampton City Council","http://opendatacommunities.org/id/metropolitan-district-council/wolverhampton","HOTELSCOM9195882416308",94.22,"MASH","4722","Section 17","01/06/2020"
"Wolverhampton City Council","http://opendatacommunities.org/id/metropolitan-district-council/wolverhampton","Wix.com",186.26,"Technical Support","5817","-","01/06/2020"
"Wolverhampton City Council","http://opendatacommunities.org/id/metropolitan-district-council/wolverhampton","WIX.COM",93.13,"Technical Support","5968","-","01/06/2020"
"Wolverhampton City Council","http://opendatacommunities.org/id/metropolitan-district-council/wolverhampton","FACEBK  NFMVET2XP2",12.96,"Technical Support","7311","-","01/06/2020"
"Wolverhampton City Council","http://opendatacommunities.org/id/metropolitan-district-council/wolverhampton","AMZNMktplace",9.96,"Duke Street Bungalows","5999","R4010","01/06/2020"
"Wolverhampton City Council","http://opendatacommunities.org/id/metropolitan-district-council/wolverhampton","AMZNMktplace",74.74,"Duke Street Bungalows","5999","R4010","01/06/2020"
"Wolverhampton City Council","http://opendatacommunities.org/id/metropolitan-district-council/wolverhampton","AMZNMktplace",15.12,"Duke Street Bungalows","5999","R4010","01/06/2020"
"Wolverhampton City Council","http://opendatacommunities.org/id/metropolitan-district-council/wolverhampton","CardtronicsUK",50,"Ernest Bold Court","6011","Provisions (Not for resale)","01/06/2020"
"Wolverhampton City Council","http://opendatacommunities.org/id/metropolitan-district-council/wolverhampton","WWW.DYSLEXIAACTIONSHOP",253.3,"Inclusion Support","8249","Books","01/06/2020"
"Wolverhampton City Council","http://opendatacommunities.org/id/metropolitan-district-council/wolverhampton","AMZNMKTPLACE AMAZON.CO",273.43,"COVID 19 - Waste Service","5999","Equipment - Purchase","01/06/2020"
"Wolverhampton City Council","http://opendatacommunities.org/id/metropolitan-district-council/wolverhampton","AMZNMKTPLACE AMAZON.CO",74.97,"COVID 19 - Waste Service","5999","Equipment - Purchase","01/06/2020"
